Workbook

Sheet Instructions
A6: Instructions
A8: 1.) Find a quiet place and allow yourself the full four hour exam period to practice. Treat this just as you would the real exam.
A10: 2.) Use the Navigator worksheet to see a brief description of each question, its point value and navigate between questions in your preferred order.
A12: 3.) Answer each question either to the side or below the grey question area.
A14: 4.) Use cell B1 on each question worksheet to mark whether you finished the question or not. You should use this feature to
A15: reflect your confidence in your answer. This way you'll know if you're on the money or your guesses were lucky.
A17: 5.) Grade each question harshly. It's better to put in extra reviewing time now than find the examiners aren't as generous as you hoped.
A18: Use increments of 0.25 when scoring; pay attention to the language used in the question and the point value. An "identify" question
A19: is likely 0.25 per item while an "explain" or "briefly justify" gets 0.25 for the item and another 0.25 for the justification.
A21: 6.) Enter your estimated score for each sub-part of a question in the box beneath the sub-part point value. They look like:
A23: 7.) Use the Point Grid to see your score and a breakdown of where you scored well and where you didn't.
A25: 8.) Find the top five questions where you lost the most points. These are the topics you need to review the most intensely in the
A26: next day or so.
A28: 9.) On the BattleActs site → Custom Battles → BattleCards - Prior Exams → Select this exam and mark the cards you got right and wrong.
A29: This allows your Battle Readiness Quotient (BRQ) to track your strengths and weaknesses.
A31: 10.) Use the Reset Exam button on the Point Grid worksheet to clear all of your work ready for a new attempt at this exam later.
A32: slay the beast

Sheet Point Grid
A5: Practice Exam 2 – Exam 8
B6: Total Point Value | C6: Sub-Part of Question | L6: Your Score | M6: Sub-Part of Question
A7: Question | C7: (a) | D7: (b) | E7: (c) | F7: (d) | G7: (e) | H7: (f) | I7: (g) | J7: Status | L7: Question | M7: (a) | N7: (b) | O7: (c) | P7: (d) | Q7: (e) | R7: (f) | S7: (g)
A8: 1 | B8: =SUM(C8:I8) -> 5.75 | C8: 2.50 | D8: 2.00 | E8: 0.50 | F8: 0.75 | J8: =INDIRECT("'"&A8&"'!B1") -> Finished | L8: =A8 -> 1 | M8: =_xlfn.IFNA(IF(ISBLANK(INDEX(INDIRECT("'"&$L8&"'!$A:$A"),MATCH(M$7,INDIRECT("'"&$L8&"'!$A:$A"),0)+2)),"",INDEX(INDIRECT("'"&$L8&"'!$A:$A"),MATCH(M$7,INDIRECT("'"&$L8&"'!$A:$A"),0)+2)),"") -> 2.50 | N8: 2.00 | O8: 0.50 | P8: 0.75
A9: =A8+1 -> 2 | B9: =SUM(C9:I9) -> 2.75 | C9: 1.00 | D9: 1.00 | E9: 0.75 | J9: =INDIRECT("'"&A9&"'!B1") -> Finished | L9: =A9 -> 2 | M9: 1.00 | N9: 1.00 | O9: 0.75
A10: =A9+1 -> 3 | B10: 2.50 | C10: 2.00 | D10: 0.50 | J10: Finished | L10: 3 | M10: 2.00 | N10: 0.50
A11: 4 | B11: 2.00 | C11: 1.50 | D11: 0.50 | J11: Finished | L11: 4 | M11: 1.50 | N11: 0.50
A12: 5 | B12: 4.25 | C12: 0.75 | D12: 1.00 | E12: 1.00 | F12: 0.50 | G12: 1.00 | J12: Finished | L12: 5 | M12: 0.75 | N12: 1.00 | O12: 1.00 | P12: 0.50 | Q12: 1.00
A13: 6 | B13: 4.75 | C13: 0.75 | D13: 1.00 | E13: 0.50 | F13: 0.50 | G13: 1.25 | H13: 0.75 | J13: Finished | L13: 6 | M13: 0.75 | N13: 1.00 | O13: 0.50 | P13: 0.50 | Q13: 1.25 | R13: 0.75
A14: 7 | B14: 2.75 | C14: 0.75 | D14: 2.00 | J14: Finished | L14: 7 | M14: 0.75 | N14: 2.00
A15: 8 | B15: 3.50 | C15: 3.00 | D15: 0.50 | J15: Finished | L15: 8 | M15: 3.00 | N15: 0.50
A16: 9 | B16: 3.50 | C16: 1.00 | D16: 1.00 | E16: 1.50 | J16: Finished | L16: 9 | M16: 1.00 | N16: 1.00 | O16: 1.50
A17: 10 | B17: 5.50 | C17: 2.50 | D17: 2.50 | E17: 0.50 | J17: Finished | L17: 10 | M17: 2.50 | N17: 2.50 | O17: 0.50
A18: 11 | B18: 3.50 | C18: 2.00 | D18: 1.00 | E18: 0.50 | J18: Finished | L18: 11 | M18: =_xlfn.IFNA(IF(ISBLANK(INDEX(INDIRECT("'"&$L18&"'!$A:$A"),MATCH(M$7,INDIRECT("'"&$L18&"'!$A:$A"),0)+2)),"",INDEX(INDIRECT("'"&$L18&"'!$A:$A"),MATCH(M$7,INDIRECT("'"&$L18&"'!$A:$A"),0)+2)),"") -> 2.00 | N18: 1.00 | O18: 0.50
A19: 12 | B19: 2.00 | C19: 2.00 | J19: Finished | L19: 12 | M19: 2.00
A20: 13 | B20: 4.00 | C20: 0.50 | D20: 1.50 | E20: 2.00 | J20: Finished | L20: 13 | M20: 0.50 | N20: 1.50 | O20: 2.00
A21: 14 | B21: 3.25 | C21: 3.25 | J21: Finished | L21: 14 | M21: 3.25
A22: 15 | B22: 2.00 | C22: 1.00 | D22: 1.00 | J22: Finished | L22: 15 | M22: 1.00 | N22: 1.00
A23: 16 | B23: 2.00 | C23: 2.00 | J23: Finished | L23: 16 | M23: 2.00
A24: 17 | B24: 1.00 | C24: 1.00 | J24: Finished | L24: 17 | M24: 1.00
A25: 18 | B25: 3.25 | C25: 2.00 | D25: 1.00 | E25: 0.25 | J25: Finished | L25: 18 | M25: 2.00 | N25: 1.00 | O25: 0.25
A26: 19 | B26: 2.50 | C26: 1.00 | D26: 0.50 | E26: 1.00 | J26: Finished | L26: 19 | M26: 1.00 | N26: 0.50 | O26: 1.00
A27: 20 | B27: 2.75 | C27: 0.75 | D27: 0.50 | E27: 0.50 | F27: 1.00 | J27: Finished | L27: 20 | M27: 0.75 | N27: 0.50 | O27: 0.50 | P27: 1.00
A28: 21 | B28: =SUM(C28:I28) -> 4.00 | C28: 2.50 | D28: 1.00 | E28: 0.50 | J28: =INDIRECT("'"&A28&"'!B1") -> Finished | L28: =A28 -> 21 | M28: 2.50 | N28: 1.00 | O28: 0.50
A30: Total | B30: =SUM(B8:B28) -> 67.50 | L30: TOTAL | M30: =IF(SUM(IF(M8:S28="",0,1))=0,"",SUM(M8:S28)) -> 67.50 | O30: Percentage: | P30: =IF(M30="","",M30/B30) -> 100.0%
L32: Passing Score: | M32: =MROUND(72%*B30,0.25) -> 48.50

Sheet Navigator
A6: Navigator – Select a question to go to it
A8: Question # | H8: Status
A9: Q1 -- Mahler -- Shifting Risk Parameters -- 5.75 points | H9: ='Point Grid'!J8 -> Finished
A10: Q2 -- Goldburd (GLM) -- GLM offsets -- 2.75 points | H10: ='Point Grid'!J9 -> Finished
A11: Q3 -- Goldburd (GLM) -- Number of Parameters within a GLM -- 2.50 points | H11: ='Point Grid'!J10 -> Finished
A12: Q4 -- Goldburd (GLM) -- Odds ratio -- 2.00 points | H12: ='Point Grid'!J11 -> Finished
A13: Q5 -- Goldburd (GLM) -- Calculating with interactions -- 4.25 points | H13: ='Point Grid'!J12 -> Finished
A14: Q6 -- Couret & Venter -- Estimate variances, credibilities, and expected claims -- 4.75 points | H14: ='Point Grid'!J13 -> Finished
A15: Q7 -- ISO Rating -- Company Subject Loss Cost -- 2.75 points | H15: ='Point Grid'!J14 -> Finished
A16: Q8 -- Fisher -- Quintiles & Efficiency Tests -- 3.50 points | H16: ='Point Grid'!J15 -> Finished
A17: Q9 -- Fisher -- Experience & Schedule Rating -- 3.50 points | H17: ='Point Grid'!J16 -> Finished
A18: Q10 -- NCCI Experience Rating -- Calculate experience modifications -- 5.50 points | H18: ='Point Grid'!J17 -> Finished
A19: Q11 -- Bailey & Simon -- Single car-year credibility -- 3.50 points | H19: ='Point Grid'!J18 -> Finished
A20: Q12 -- Fisher -- Balance Equations -- 2.00 points | H20: ='Point Grid'!J19 -> Finished
A21: Q13 -- Fisher -- Tables M and L -- 4.00 points | H21: ='Point Grid'!J20 -> Finished
A22: Q14 -- Fisher -- Large Dollar Deductible Premium -- 3.25 points | H22: ='Point Grid'!J21 -> Finished
A23: Q15 -- Fisher -- Tables M and L -- 2.00 points | H23: ='Point Grid'!J22 -> Finished
A24: Q16 -- Bahnemann -- Risk Loaded ILFs -- 2.00 points | H24: ='Point Grid'!J23 -> Finished
A25: Q17 -- Bahnemann -- Excess Layer Inflation -- 1.00 point | H25: ='Point Grid'!J24 -> Finished
A26: Q18 -- NCCI Retrospective Rating -- Preparation for Panjer's Recursive Algorithm -- 3.25 points | H26: ='Point Grid'!J25 -> Finished
A27: Q19 -- Bahnemann -- Loss Elimination Ratios -- 2.50 points | H27: ='Point Grid'!J26 -> Finished
A28: Q20 -- Bahnemann -- Inflation and the Pareto Distribution -- 2.75 points | H28: ='Point Grid'!J27 -> Finished
A29: Q21 -- Holmes -- Interpreting a Lasso Credibility Model -- 4.00 points | H29: ='Point Grid'!J28 -> Finished

Sheet 1
A1: =VALUE(MID(CELL("filename",A1),FIND("]",CELL("filename",A1))+1,LEN(CELL("filename",A1))-FIND("]",CELL("filename",A1))+1)) -> 1 | B1: Finished | G1: Navigator | J1: Solution
I2: a.) | J2: Observe the book of business has grown rapidly over time. We need to account for this by working on a per-exposure basis.
A3: Points | B3: A State Regulator is reviewing a Homeowners rate filing made by XYZ Insuance Company (XYZ).
A4: =INDEX('Point Grid'!B:B,MATCH('1'!A1,'Point Grid'!A:A,0)) -> 5.75 | B4: XYZ provided 15 years of historical data as of 12/31/2022 in support of their catastrophe provision: | J4: First calculate the ratio of catastrophe losses to non-catastrophe losses
J5: Year | K5: NC / EE | L5: Actual Cat/EE | M5: Expected Cat/EE | N5: (A-E)^2/E
B6: Accident | C6: Earned | D6: Case Incurred Loss and DCC ($000) | J6: =B8 -> 2007 | K6: =E8/C8 -> 5.421 | L6: =D8/C8 -> 0.000 | M6: =K6*($B$26-1) -> 4.709 | N6: =(L6-M6)^2/M6 -> 4.709
B7: Year | C7: Exposures | D7: Catastrophic | E7: Non-Catastrophic | J7: 2008 | K7: =E9/C9 -> 3.506 | L7: =D9/C9 -> 0.000 | M7: =K7*($B$26-1) -> 3.045 | N7: =(L7-M7)^2/M7 -> 3.045
B8: 2007 | C8: 2,601 | D8: 0 | E8: 14,100 | J8: 2009 | K8: 2.094 | L8: =D10/C10 -> 0.700 | M8: =K8*($B$26-1) -> 1.819 | N8: =(L8-M8)^2/M8 -> 0.689
B9: 2008 | C9: 7,331 | D9: 0 | E9: 25,700 | J9: 2010 | K9: 1.612 | L9: 0.000 | M9: 1.401 | N9: 1.401
B10: 2009 | C10: 14,330 | D10: 10,024 | E10: 30,000 | J10: 2011 | K10: 1.660 | L10: 0.558 | M10: 1.442 | N10: 0.542
B11: 2010 | C11: 17,056 | D11: 0 | E11: 27,500 | J11: 2012 | K11: 1.970 | L11: 0.000 | M11: 1.711 | N11: 1.711
B12: 2011 | C12: 19,513 | D12: 10,891 | E12: 32,400 | J12: 2013 | K12: 1.867 | L12: 2.399 | M12: 1.622 | N12: 0.372
B13: 2012 | C13: 22,182 | D13: 0 | E13: 43,700 | J13: 2014 | K13: 1.563 | L13: 0.000 | M13: 1.358 | N13: 1.358
B14: 2013 | C14: 26,191 | D14: 62,834 | E14: 48,900 | J14: 2015 | K14: 1.567 | L14: 1.221 | M14: 1.361 | N14: 0.014
B15: 2014 | C15: 36,205 | D15: 0 | E15: 56,600 | J15: 2016 | K15: 2.081 | L15: 2.296 | M15: 1.808 | N15: 0.132
B16: 2015 | C16: 37,069 | D16: 45,263 | E16: 58,100 | J16: 2017 | K16: 2.130 | L16: 1.555 | M16: 1.850 | N16: 0.047
B17: 2016 | C17: 38,054 | D17: 87,378 | E17: 79,200 | J17: 2018 | K17: 2.103 | L17: 0.310 | M17: 1.827 | N17: 1.260
B18: 2017 | C18: 38,928 | D18: 60,517 | E18: 82,900 | J18: 2019 | K18: 2.085 | L18: 4.201 | M18: 1.811 | N18: 3.157
B19: 2018 | C19: 41,699 | D19: 12,909 | E19: 87,700 | J19: 2020 | K19: 2.081 | L19: 2.602 | M19: 1.807 | N19: 0.349
B20: 2019 | C20: 44,087 | D20: 185,229 | E20: 91,900 | J20: 2021 | K20: 2.200 | L20: =D22/C22 -> 4.079 | M20: 1.911 | N20: 2.458
B21: 2020 | C21: 45,128 | D21: 117,421 | E21: 93,900
B22: 2021 | C22: 44,042 | D22: 179,632 | E22: 96,900 | J22: Total | N22: =SUM(N6:N20) -> 21.245
B24: 1.656 | C24: 15-year straight average factor | J24: Degrees of Freedom: | L24: =15-1 -> 14 | M24: Since we estimated the 15-year weighted average.
B25: 1.916 | C25: 10-year straight average factor
B26: 1.869 | C26: 15-year exposure weighted average factor | J26: Chi-squared statistic with 14 degrees of freedom and α = 0.1
B27: 1.980 | C27: 10-year exposure weighted average factor | J27: =_xlfn.CHISQ.INV(1-0.1,14) -> 21.064
B29: • XYZ selected the 10-year exposure weighted average catastrophe provision, citing a recent | J29: Since the test statistic is 21.245 which is greater than the chi-squared statistic of 21.064, we reject the null hypothesis
B30: upward trend in the ratio of catastrophe to non-catastrophe claims. | J30: that the risk parameters are not changing over time.
J31: We agree with XYZ's statement.
A32: (a) | B32: Apply Mahler's Chi-squared test with α = 0.1 to evaluate whether the catastrophe provision
A33: =INDEX('Point Grid'!$C$8:$I$27,MATCH($A$1,'Point Grid'!$A$8:$A$27,0),MATCH(A32,'Point Grid'!$C$7:$I$7,0)) -> 2.5 | B33: is changing over time. Use the 15-year weighted average factor to estimate the expected | J33: Note: If you didn't control for the exposure growth you would incorrectly not reject the null hypothesis.
A34: 2.5 | B34: catastrophe losses. Explain whether you agree with XYZ's statement.
I35: b.) | J35: Year | K35: Cat/Non-Cat | L35: Estimate | M35: (X_Act - X_Est)^2
B36: The actuary at the regulator wonders if the selected provision is too high. | J36: =B13 -> 2012 | K36: =D13/E13 -> 0.000 | L36: NA | M36: NA
B37: The latest available industry catastrophe provision (applied to non-CAT claims) is: | G37: 1.850 | J37: =B14 -> 2013 | K37: =D14/E14 -> 1.285 | L37: NA | M37: NA
J38: 2014 | K38: 0.000 | L38: NA | M38: NA
B39: The actuary uses the latest 10 years of data provided by XYZ and estimates the catastrophe to | J39: 2015 | K39: =D16/E16 -> 0.779 | L39: =$K$47/3*(K36+K37+K38)+(1-$K$47)*($G$37-1) -> 0.428 | M39: =(L39-K39)^2 -> 0.1230
B40: non-catastrophe claims ratio by giving weight Z/3 to each of the preceding three years with the | J40: 2016 | K40: 1.103 | L40: 0.688 | M40: =(L40-K40)^2 -> 0.1724
B41: complement being the industry ratio. | J41: 2017 | K41: 0.730 | L41: 0.627 | M41: 0.0105
J42: 2018 | K42: 0.147 | L42: 0.871 | M42: 0.5236
A43: (b) | B43: Calculate the optimal credibility to the nearest 10% using the mean squared error criterion. | J43: 2019 | K43: 2.016 | L43: 0.660 | M43: 1.8371
A44: =INDEX('Point Grid'!$C$8:$I$27,MATCH($A$1,'Point Grid'!$A$8:$A$27,0),MATCH(A43,'Point Grid'!$C$7:$I$7,0)) -> 2 | J44: 2020 | K44: 1.250 | L44: 0.964 | M44: 0.0819
A45: 2 | J45: 2021 | K45: 1.854 | L45: 1.138 | M45: 0.5127
A47: (c) | B47: Using the method from part (b) above, estimate the future catastrophe provision which would | J47: Z = | K47: 100%
A48: =INDEX('Point Grid'!$C$8:$I$27,MATCH($A$1,'Point Grid'!$A$8:$A$27,0),MATCH(A47,'Point Grid'!$C$7:$I$7,0)) -> 0.5 | B48: apply to non-catastrophic losses and opine on the reasonableness of XYZ's proposed | J48: MSE | K48: =SUM(M39:M45)/COUNT(M39:M45) -> 0.4659
A49: 0.5 | B49: catastrophe provision.
J50: Once the above is set up, you iterate through the values of Z in increments of 10% to complete the table below.
A51: (d) | B51: The regulatory analyst's manager contends that insufficient consideration is given to older | J51: Z | K51: MSE | L51: Z | M51: MSE
A52: =INDEX('Point Grid'!$C$8:$I$27,MATCH($A$1,'Point Grid'!$A$8:$A$27,0),MATCH(A51,'Point Grid'!$C$7:$I$7,0)) -> 0.75 | B52: historical data under the analysis used in part b.) above. | J52: 0% | K52: 0.4434 | L52: 60% | M52: 0.4437
A53: 0.75 | B53: Identify what would likely happen if the analysis was repeated using more years of data in the | J53: 10% | K53: 0.4407 | L53: 70% | M53: 0.4476
B54: catastrophe provision (not more years of data when calculating the optimal credibility) and | J54: 20% | K54: 0.4391 | L54: 80% | M54: 0.4526
B55: briefly explain why. | J55: 30% | K55: 0.4386 | L55: 90% | M55: 0.4587
J56: 40% | K56: 0.4392 | L56: 100% | M56: 0.4659
J57: 50% | K57: 0.4409
J59: From the table above, the optimal credibility to assign to the data is 30% (10% to each of the last three years).
I61: c.) | J61: Using Z = | K61: 30%
J62: Catastrophe provision = | L62: =$K$61/3*(K45+K44+K43)+(1-$K$61)*($G$37-1)+1 -> 2.107
J64: XYZ selected a catastrophe provision of 1.980 which is higher than the industry provision but lower than that
J65: indicated by the optimal mean squared error process. As such, their provision is reasonable and reflects the
J66: shifting risk parameters.
I68: d.) | J68: The analysis could be repeated using say 4 or 5 years instead of 3. Since the risk parameters are
J69: shifting over time, we should expect the optimal credibility to decline. This is because the older years are less
J70: reflective of the future in a changing environment.

Sheet 2
A1: =VALUE(MID(CELL("filename",A1),FIND("]",CELL("filename",A1))+1,LEN(CELL("filename",A1))-FIND("]",CELL("filename",A1))+1)) -> 2 | B1: Finished | G1: Navigator | J1: Solution
I2: a.) | J2: The analyst should separately estimate the relativities for the territories and deductibles and then
A3: Points | B3: An analyst is building a generalized linear model for a rating plan. The new plan | J3: include them in the GLM via offset terms.
A4: =INDEX('Point Grid'!B:B,MATCH('2'!A1,'Point Grid'!A:A,0)) -> 2.75 | B4: will include the territory and deductible relativities from their existing rating plan. | J4: The analyst should do this for territory because there may be too many territories to realistically consider
J5: the territory data to be fully credible which is a core assumption when modeling with GLMs.
A6: (a) | B6: Briefly describe how the analyst should incorporate territory and deductible into | J6: The analyst should do this for deductibles because GLMs often produce counterintuitive results when modeling
A7: =INDEX('Point Grid'!$C$8:$I$27,MATCH($A$1,'Point Grid'!$A$8:$A$27,0),MATCH(A6,'Point Grid'!$C$7:$I$7,0)) -> 1 | B7: the GLM and explain why they should do this for each. | J7: limits/deductibles. This can be due to business decisions such as requiring high risk policies to have high deductibles.
A8: 1
I9: b.) | J9: Territory | K9: ln(Relativity) | M9: Deductible | N9: ln(Relativity)
A10: (b) | B10: The analyst is building a pure premium model using a log-link function. | J10: =B21 -> A | K10: =LN(C21) -> 0.0000 | M10: =E21 -> $500 | N10: =LN(F21) -> 0.0953
A11: =INDEX('Point Grid'!$C$8:$I$27,MATCH($A$1,'Point Grid'!$A$8:$A$27,0),MATCH(A10,'Point Grid'!$C$7:$I$7,0)) -> 1 | B11: They want to verify their model is correctly incorporating the territory and deductible | J11: =B22 -> B | K11: =LN(C22) -> 0.2231 | M11: =E22 -> $1,000 | N11: =LN(F22) -> 0.0000
A12: 1 | B12: relativities which are shown below: | J12: =B23 -> C | K12: =LN(C23) -> -0.2231 | M12: =E23 -> $2,000 | N12: =LN(F23) -> -0.2877
B14: Record ID | C14: Territory | D14: Deductible | J14: Record | K14: Offset
B15: 1 | C15: A | D15: $500 | J15: 1 | K15: =INDEX($K$10:$K$12,MATCH(C15,$J$10:$J$12,0)) + INDEX($N$10:$N$12,MATCH(D15,$M$10:$M$12,0)) -> 0.0953
B16: 2 | C16: B | D16: $1,000 | J16: 2 | K16: =INDEX($K$10:$K$12,MATCH(C16,$J$10:$J$12,0)) + INDEX($N$10:$N$12,MATCH(D16,$M$10:$M$12,0)) -> 0.2231
B17: 3 | C17: C | D17: $2,000 | J17: 3 | K17: =INDEX($K$10:$K$12,MATCH(C17,$J$10:$J$12,0)) + INDEX($N$10:$N$12,MATCH(D17,$M$10:$M$12,0)) -> -0.5108
B18: 4 | C18: B | D18: $2,000 | J18: 4 | K18: =INDEX($K$10:$K$12,MATCH(C18,$J$10:$J$12,0)) + INDEX($N$10:$N$12,MATCH(D18,$M$10:$M$12,0)) -> -0.0645
B20: Territory | C20: Relativity | E20: Deductible | F20: Relativity | I20: c.) | J20: i.) TRUE
B21: A | C21: 1.000 | E21: $500 | F21: 1.100 | J21: ii.) FALSE
B22: B | C22: 1.250 | E22: $1,000 | F22: 1.000 | J22: iii.) TRUE
B23: C | C23: 0.800 | E23: $2,000 | F23: 0.750 | J23: iv.) TRUE
J24: v.) FALSE
B25: Calculate the value for each record using the method you described in part (a) above
B26: which will allow the analyst to verify if the GLM is correctly set up.
A28: (c) | B28: Identify which of the following are key things to consider when the actuary is
A29: =INDEX('Point Grid'!$C$8:$I$27,MATCH($A$1,'Point Grid'!$A$8:$A$27,0),MATCH(A28,'Point Grid'!$C$7:$I$7,0)) -> 0.75 | B29: designing the risk classes for use in the GLM.
A30: 0.75 | B30: i.) Practicality – can you place a risk in the correct class accurately and quickly?
B31: ii.) Acceptability to Sales Agents – will the variable reduce their bonuses?
B32: iii.) Risk of adverse selection – are the classes sufficiently homogeneous?
B33: iv.) Credibility – is there sufficient data in each class?
B34: v.) Speed to Market – can they bring the product to market quicker than expected?

Sheet 3
A1: =VALUE(MID(CELL("filename",A1),FIND("]",CELL("filename",A1))+1,LEN(CELL("filename",A1))-FIND("]",CELL("filename",A1))+1)) -> 3 | B1: Finished | H1: Navigator | K1: Solution
J2: a.) | K2: AIC = -2*log-likelihood + 2p where p is the number of parameters.
A3: Points | B3: You are given the following table for model selection: | K3: The intercept is a single parameter and so the Age variable contributes 4 parameters.
A4: =INDEX('Point Grid'!B:B,MATCH('3'!A1,'Point Grid'!A:A,0)) -> 2.5 | K4: Similarly, there are 10 parameters for the Vehicle Body variable.
G5: Number of
B6: Model | F6: -2*ll | G6: Parameters | H6: AIC | K6: Using the first line we get
B7: Intercept + Age | F7: A | G7: 5 | H7: 435 | K7: 435 = A + 2*5 which yields
B8: Intercept + Vehicle Body | F8: 392 | G8: 11 | H8: 414 | K8: A = | L8: =H7-2*G7 -> 425
B9: Intercept + Age + Vehicle Value | F9: 392 | G9: X | H9: 446
B10: Intercept + Age + Vehicle Body + Vehicle Value | F10: B | G10: Y | H10: 501 | K10: Using the third line we get
K11: 446 = 392 + 2X which yields
A12: (a) | B12: Calculate A, B, X, and Y. | K12: X = | L12: =(H9-F9)/2 -> 27
A13: =INDEX('Point Grid'!$C$8:$I$27,MATCH($A$1,'Point Grid'!$A$8:$A$27,0),MATCH(A12,'Point Grid'!$C$7:$I$7,0)) -> 2
A14: 2 | K14: The number of parameters found in the fourth line is then Y = X + 10.
K15: So Y = | L15: =L12+10 -> 37
A16: (b) | B16: Briefly explain which model performs best according to the AIC measure.
A17: =INDEX('Point Grid'!$C$8:$I$27,MATCH($A$1,'Point Grid'!$A$8:$A$27,0),MATCH(A16,'Point Grid'!$C$7:$I$7,0)) -> 0.5 | K17: Using the fourth line we get
A18: 0.5 | K18: 501 = B + 2Y which yields
K19: B = | L19: =H10-2*L15 -> 427
J21: b.) | K21: The Intercept + Vehicle Body model performs best as it has the lowest AIC score.

Sheet 4
A1: =VALUE(MID(CELL("filename",A1),FIND("]",CELL("filename",A1))+1,LEN(CELL("filename",A1))-FIND("]",CELL("filename",A1))+1)) -> 4 | B1: Finished | G1: Navigator | J1: Solution
I2: a.)
A3: Points | B3: You are given the following information for a fitted GLM:
A4: =INDEX('Point Grid'!B:B,MATCH('4'!A1,'Point Grid'!A:A,0)) -> 2
B5: Response variable | C5: Occurrence of Accidents
B6: Response distribution | C6: Binomial
B7: Link | C7: Logit | J7: Using the Logit link function we have ln(u/(1-u)) = x + 0.064 + 0 + -0.371 where u = 0.22.
J8: Therefore, x = | L8: =LN(B28/(1-B28))-D15-D21-D25 -> -0.9587
C9: Degrees of
B10: Parameter | C10: Freedom | J10: Applying the Logit link function again, this time to the parameters specified in part (a)
B11: Intercept | C11: 1 | D11: x | J11: ln(u/(1-u)) = | L11: =L8+D16+D20+D24 -> 0.2303
B13: Driver's Age | C13: 2 | J13: So the odds ratio is | L13: =EXP(L11) -> 1.259
B14: 1 | C14: 1 | D14: 0.288
B15: 2 | C15: 1 | D15: 0.064 | I15: b.) | J15: The odds ratio measures the strength of association; in this case between the claim frequency and driver description.
B16: 3 | C16: 0 | D16: 0 | J16: The further away the odds ratio is from 1.000 (in either direction), the stronger the association.
J17: In this case, the odds ratio of 1.259 indicates a positive relationship between claim frequency and this type of driver.
B18: Area | C18: 2
B19: A | C19: 1 | D19: -0.036
B20: B | C20: 1 | D20: 0.053
B21: C | C21: 0 | D21: 0
B23: Vehicle Body | C23: 2
B24: Truck | C24: 1 | D24: 1.136
B25: Other | C25: 1 | D25: -0.371
B26: Sedan | C26: 0 | D26: 0
B28: 0.22 | C28: The probability of a driver in age group 2, from area C
C29: and with vehicle body type Other, having an accident.
A31: (a) | B31: Calculate the odds ratio of a driver in age group 3, from area B, and with vehicle body
A32: =INDEX('Point Grid'!$C$8:$I$27,MATCH($A$1,'Point Grid'!$A$8:$A$27,0),MATCH(A31,'Point Grid'!$C$7:$I$7,0)) -> 1.5 | B32: type Truck having an accident.
A33: 1.5
A35: (b) | B35: Briefly interpret the odds ratio derived in part (a) above.
A36: =INDEX('Point Grid'!$C$8:$I$27,MATCH($A$1,'Point Grid'!$A$8:$A$27,0),MATCH(A35,'Point Grid'!$C$7:$I$7,0)) -> 0.5
A37: 0.5

Sheet 5
A1: =VALUE(MID(CELL("filename",A1),FIND("]",CELL("filename",A1))+1,LEN(CELL("filename",A1))-FIND("]",CELL("filename",A1))+1)) -> 5 | B1: Finished | F1: Navigator | I1: Solution
H2: a.) | I2: Estimated claim severity for electric vehicles that are trucks and drive 30 miles per day:
A3: Points | B3: An actuary is working on a usage based insurance (UBI) program for a state's Private Passenger | I3: ln(u) = | J3: =D17+D18+D20+LN(D27/20)*D21+LN(D27/20)*D22 -> 9.472424823
A4: =INDEX('Point Grid'!B:B,MATCH('5'!A1,'Point Grid'!A:A,0)) -> 4.25 | B4: Automobile market. They create a generalized linear model (GLM) to predict claim severity | I4: u = | J4: =EXP(J3) -> 12,996
B5: by Daily Miles Driven (DMD), Vehicle Type, and Electric Vehicle Ind (EVInd).
I6: Estimated claim severity for non-electric vehicles that are trucks and drive 30 miles per day:
B7: • Policies are effective for 6-months and the actuary uses data from 2017 through 2019. | I7: ln(u) = | J7: =D17+D18+0*D20+LN(D27/20)*D21+0*D22 -> 9.586551404
B8: • Daily Miles Driven is a continuous variable with a base level of 20 miles per day. | I8: u = | J8: =EXP(J7) -> 14,568
B9: • Vehicle Type is a categorical variable with levels: Car, Truck, and Van.
B10: • Electric Vehicle Ind is a binary variable which classifies whether a vehicle is counted as | I10: Ratio of electric to non-electric for trucks driven 30 miles per day: | N10: =J4/J8 -> 0.892
B11: an electric vehicle or not.
B12: • The log-link function is chosen. | H12: b.) | I12: Typical means average, so drives the median miles per day and all other variables are at their base level as the base level
B13: • An interaction variable is included as ln(DMD/20) for EVInd. | I13: (should) have the highest volume of exposures for a given rating variable.
B14: • The model results are as follows: | I14: ln(u) = | J14: =D17+0+0+LN(20/20)*D21+0 -> 9.1198
I15: u = | J15: =EXP(J14) -> 9,134
C16: Parameter | D16: Coefficient
C17: Intercept | D17: 9.1198 | H17: c.) | I17: The actuary can use a perspective plot.
C18: Vehicle Type: Truck | D18: 0.3012 | I18: Hold all variables equal except for ln(DMD/20) and ln(YDE). Model with and without the interaction.
C19: Vehicle Type: Van | D19: 0.7879 | I19: Build perspective plots for with and without the interaction.
C20: EVInd | D20: -0.0988 | I20: If the perspective plots look significantly different then the interaction is likely material and should be included.
C21: ln(DMD/20) | D21: 0.4083
C22: EVInd: Yes, ln(DMD/20) | D22: -0.0378 | H22: d.) | I22: 1. GLMs assume the data is fully credible.
I23: 2. GLMs assume the randomness of outcomes is uncorrelated.
A24: (a) | B24: Calculate the ratio of the estimated claim severity for an Electric Vehicle to that of a non-Electric
A25: =INDEX('Point Grid'!$C$8:$I$27,MATCH($A$1,'Point Grid'!$A$8:$A$27,0),MATCH(A24,'Point Grid'!$C$7:$I$7,0)) -> 0.75 | B25: Vehicle for the following characteristics: | H25: e.) | I25: 1. Renewals are present in the dataset because policies are effective for 6-months and we have two years of data.
A26: 0.75 | I26: An insured likely has similar (correlated) outcomes across policy periods. I.e. a bad driver is usually a persistently bad driver.
C27: Daily Miles Driven | D27: 30 | I27: 2. Electric vehicles are relatively new in 2017 – 2019; there may be insufficient data to be considered fully credible.
C28: Vehicle Type | D28: Truck
A30: (b) | B30: Suppose the median Daily Miles Driven for your book of business is estimated as 20 miles per day.
A31: =INDEX('Point Grid'!$C$8:$I$27,MATCH($A$1,'Point Grid'!$A$8:$A$27,0),MATCH(A30,'Point Grid'!$C$7:$I$7,0)) -> 1 | B31: Calculate the intercept term for a "typical" policyholder and briefly explain its meaning.
A32: 1
A34: (c) | B34: The actuary is considering adding Years of Driving Experience (YDE) to the model.
A35: =INDEX('Point Grid'!$C$8:$I$27,MATCH($A$1,'Point Grid'!$A$8:$A$27,0),MATCH(A34,'Point Grid'!$C$7:$I$7,0)) -> 1 | B35: Describe how they can determine whether the interaction between ln(YDE) and ln(DMD/20)
A36: 1 | B36: is significant.
A38: (d) | B38: Identify two limitations of Generalized Linear Models.
A39: =INDEX('Point Grid'!$C$8:$I$27,MATCH($A$1,'Point Grid'!$A$8:$A$27,0),MATCH(A38,'Point Grid'!$C$7:$I$7,0)) -> 0.5
A40: 0.5
A42: (e) | B42: Briefly explain why each of the limitations in part b.) above may be present in the actuary's work.
A43: =INDEX('Point Grid'!$C$8:$I$27,MATCH($A$1,'Point Grid'!$A$8:$A$27,0),MATCH(A42,'Point Grid'!$C$7:$I$7,0)) -> 1
A44: 1

Sheet 6
A1: =VALUE(MID(CELL("filename",A1),FIND("]",CELL("filename",A1))+1,LEN(CELL("filename",A1))-FIND("]",CELL("filename",A1))+1)) -> 6 | B1: Finished | L1: Navigator | O1: Solution
N2: a.) | O2: First convert the given table into ratios of claims to TT claims.
A3: Points | B3: An actuary has collected the following claim count data for Workers' Compensation claims. | P3: Year 1 | R3: Year 2 | T3: Total
A4: =INDEX('Point Grid'!B:B,MATCH('6'!A1,'Point Grid'!A:A,0)) -> 4.75 | B4: The only injury types are Fatal, Major, and Temporary Total (TT). | O4: Class | P4: Fatal | Q4: Major | R4: Fatal | S4: Major | T4: Fatal | U4: Major
B5: The classes below are the only classes the company writes in Hazard Group F. | O5: 1 | P5: =C9/$E9 -> 0.0024 | Q5: 0.0313 | R5: =F9/$H9 -> 0.0476 | S5: 0.1607 | T5: =I9/$K9 -> 0.0154 | U5: 0.0686
O6: 2 | P6: 0.0245 | Q6: 0.0735 | R6: 0.0439 | S6: 0.0732 | T6: 0.0333 | U6: 0.0733
C7: Year 1 | F7: Year 2 | I7: Total | O7: 3 | P7: 0.0120 | Q7: 0.0501 | R7: 0.0023 | S7: 0.0621 | T7: 0.0075 | U7: 0.0557
B8: Class | C8: Fatal | D8: Major | E8: TT | F8: Fatal | G8: Major | H8: TT | I8: Fatal | J8: Major | K8: TT | O8: Hazard Group F | P8: 0.0112 | Q8: 0.0483 | R8: 0.0223 | S8: 0.0854 | T8: 0.0158 | U8: 0.0635
B9: 1 | C9: 1 | D9: 13 | E9: 415 | F9: 8 | G9: 27 | H9: 168 | I9: =C9+F9 -> 9 | J9: 40 | K9: 583
B10: 2 | C10: 6 | D10: 18 | E10: 245 | F10: 9 | G10: 15 | H10: 205 | I10: 15 | J10: 33 | K10: 450 | O10: Apply the following formula to estimate the expected process variance (EPV).
B11: 3 | C11: 6 | D11: 25 | E11: 499 | F11: 1 | G11: 27 | H11: 435 | I11: 7 | J11: 52 | K11: 934 | S11: R is the number of classes in the hazard group
B12: Hazard Group F | C12: =SUM(C9:C11) -> 13 | D12: =SUM(D9:D11) -> 56 | E12: 1,159 | F12: 18 | G12: 69 | H12: 808 | I12: 31 | J12: 125 | K12: 1,967 | S12: N is the number of years of data available. We need at least two years to be able
S13: to estimate variances.
B14: Let V denote the ratio of Fatal claims to TT claims. | S14: mit is the number of TT claims for class i in year t.
B15: Let X denote the ratio of Major claims to TT claims. | O15: R = | P15: 3
B16: Answer the following using Couret & Venter's multi-dimensional credibility technique. | O16: N = | P16: 2
O17: Calculating (Xit - Xi)2 | Q17: Year
A18: (a) | B18: Calculate the estimated Expected Process Variance for X for the hazard group. | P18: Class | Q18: 1 | R18: 2
A19: =INDEX('Point Grid'!$C$8:$I$27,MATCH($A$1,'Point Grid'!$A$8:$A$27,0),MATCH(A18,'Point Grid'!$C$7:$I$7,0)) -> 0.75 | P19: 1 | Q19: =(Q5-U5)^2 -> 0.001390 | R19: =(S5-U5)^2 -> 0.008483
A20: 0.75 | P20: 2 | Q20: =(Q6-U6)^2 -> 0.000000 | R20: =(S6-U6)^2 -> 0.000000
P21: 3 | Q21: =(Q7-U7)^2 -> 0.000031 | R21: =(S7-U7)^2 -> 0.000041
A22: (b) | B22: Calculate the estimated Variance of Hypothetical Means for X for the hazard group.
A23: =INDEX('Point Grid'!$C$8:$I$27,MATCH($A$1,'Point Grid'!$A$8:$A$27,0),MATCH(A22,'Point Grid'!$C$7:$I$7,0)) -> 1 | O23: EPV X = | P23: =(SUMPRODUCT(E9:E11,Q19:Q21)+SUMPRODUCT(H9:H11,R19:R21))/(P15*(P16-1)) -> 0.678464
A24: 1
N25: b.) | O25: Apply the following formula to estimate the variance of hypothetical means (VHM).
A26: (c) | B26: Calculate the estimated covariance between V and X for the hazard group. | O26: Notice this depends on your answer to part (a) but you'd get credit for using part (a) even if your answer was wrong.
A27: =INDEX('Point Grid'!$C$8:$I$27,MATCH($A$1,'Point Grid'!$A$8:$A$27,0),MATCH(A26,'Point Grid'!$C$7:$I$7,0)) -> 0.5
A28: 0.5
B30: Given the following:
B31: EPV V | C31: 0.1028 | O31: Class | P31: (Xi - Xh)2 | R31: VHM X = | S31: =(SUMPRODUCT(K9:K11,P32:P34)-(P15-1)*P23)/(K12-1/K12*SUMSQ(K9:K11)) -> -0.0009945791404 | T31: VHM is negative, per Couret & Venter this means we should set it equal to 0.
B32: VHM V | C32: 0.0000 | O32: 1 | P32: =(U5-$U$8)^2 -> 0.000026 | R32: VHM X = | S32: =MAX(0,S31) -> 0.000000
O33: 2 | P33: =(U6-$U$8)^2 -> 0.000096
A34: (d) | B34: Calculate the Variance of V and the Variance of X for Class 3. | O34: 3 | P34: =(U7-$U$8)^2 -> 0.000062
A35: =INDEX('Point Grid'!$C$8:$I$27,MATCH($A$1,'Point Grid'!$A$8:$A$27,0),MATCH(A34,'Point Grid'!$C$7:$I$7,0)) -> 0.5
A36: 0.5 | N36: c.) | O36: Apply the following formula to estimate the covariance between V and X.
A38: (e) | B38: Calculate the credibilities used by Class 3 to estimate X for its population.
A39: =INDEX('Point Grid'!$C$8:$I$27,MATCH($A$1,'Point Grid'!$A$8:$A$27,0),MATCH(A38,'Point Grid'!$C$7:$I$7,0)) -> 1.25
A40: 1.25 | O40: Class | P40: (Vi - Vh) | Q40: (Xi - Xh)
O41: 1 | P41: =T5-T$8 -> -0.0003 | Q41: 0.0051
A42: (f) | B42: Calculate the expected number of Major claims for Class 3. | O42: 2 | P42: 0.0176 | Q42: 0.0098
A43: =INDEX('Point Grid'!$C$8:$I$27,MATCH($A$1,'Point Grid'!$A$8:$A$27,0),MATCH(A42,'Point Grid'!$C$7:$I$7,0)) -> 0.75 | O43: 3 | P43: -0.0083 | Q43: -0.0079
A44: 0.75
O45: Cov(Vi, Xi) = | P45: =SUMPRODUCT(P41:P43,Q41:Q43,K9:K11)/K12 -> 0.000070
N47: d.) | O47: Apply the following formula to estimate the variance for Class i.
O51: Variance of X for Class 3 = | Q51: =P23/K11+S32 -> 0.000726
O52: Variance of V for Class 3 = | Q52: =C31/K11+C32 -> 0.000110
N54: e.) | O54: Use the following credibility equation
O58: LHS | Q58: RHS 2 by 2 matrix
O59: =P45 -> 0.000070 | Q59: =Q52 -> 0.000110 | R59: =P45 -> 0.000070
O60: =S32 -> 0.000000 | Q60: =P45 -> 0.000070 | R60: =Q51 -> 0.000726
O62: Alice: "Note Cov(X3, x3) = VHMX because the covariance of an observed variable, x3, with its unobserved mean, X3, is the variance of its hypothetical means."
O64: Now apply the MINVERSE function to invert the matrix. You'll need to use an array formula to do this.
O65: (Both the MINVERSE function and array formulas are currently available in the Pearson environment)
O67: 2 by 2 matrix inverse
O68: =MINVERSE(Q59:R60) -> 9672.182281 | P68: -928.8235663
O69: -928.8235663 | P69: 1465.83475
O71: Solve the matrix equation to calculate the credibilities used by Class 3.
P72: =SUMPRODUCT(O68:P68,TRANSPOSE(O59:O60)) -> 0.674704
P73: =SUMPRODUCT(O69:P69,TRANSPOSE(O59:O60)) -> -0.064792
N75: f.) | O75: Apply the following multidimensional credibility formula
O78: E[X3] = | P78: =U8+P72*(T7-T8)+P73*(U7-U8) -> 0.05848203495 | Q78: This is the ratio of Major claims to TT claims.
O80: =P78*K11 -> 54.6 | P80: Major claims expected in Class 3

Sheet 7
A1: =VALUE(MID(CELL("filename",A1),FIND("]",CELL("filename",A1))+1,LEN(CELL("filename",A1))-FIND("]",CELL("filename",A1))+1)) -> 7 | B1: Finished | K1: Navigator | N1: Solution
M2: a.) | N2: The company has experienced rapid growth in gross annual sales. Therefore, there has been a dramatic shift
A3: Points | B3: The following policy is being rated using the ISO CGL rating plan. | N3: in exposures so it is not appropriate to use the standard approach.
A4: =INDEX('Point Grid'!B:B,MATCH(A1,'Point Grid'!A:A,0)) -> 2.75 | G4: Current Company Rates per Exposure | N4: We cannot use the Present Average Company Rates approach because we lack information about the
B5: =DATE(YEAR(TODAY()),12,1) -> 2025-12-01 | C5: Effective Date | G5: Policy Type | H5: Sub-line | I5: Rate | N5: company's annual basic limits premium.
B6: Claims-Made (CM) | C6: Policy Type | G6: 3rd-yr CM | H6: Prem/Ops | I6: 7.7
B7: 72% | C7: Expected Loss Ratio (ELR) | G7: 3rd-yr CM | H7: Products | I7: 8.9
G8: 2nd-yr CM | H8: Prem/Ops | I8: 3.3 | M8: b.) | N8: The experience period is the latest three full years ending at least six months prior to the policy effective date.
G9: 2nd-yr CM | H9: Products | I9: 4.2 | N9: ="Thus, we are looking at years "&N20&" – "&N15&"." -> Thus, we are looking at years 2021 – 2023.
G10: 1st-yr CM | H10: Prem/Ops | I10: 1.8 | N10: ="Since "&YEAR(B19)&" is a 2nd-year claims made policy, we are pricing a 3rd-year claims made policy." -> Since 2024 is a 2nd-year claims made policy, we are pricing a 3rd-year claims made policy.
G11: 1st-yr CM | H11: Products | I11: 4.1
G12: Ocurrence | H12: Prem/Ops | I12: 7.9 | Y12: Annual Basic
G13: Ocurrence | H13: Products | I13: 5.4 | N13: Policy | P13: Policy | Q13: Historical | R13: Basic | Y13: Limits Company
N14: Year | O14: Sub-line | P14: Type | Q14: Exposures | R14: Rate | S14: ILF | T14: ELR | U14: BLEL | V14: PAF 13B | W14: PAF 13C | X14: Detrend | Y14: Loss Cost
B15: Information about previous policy years | N15: =YEAR(B20) -> 2023 | O15: Prem/Ops | P15: 1st yr CM | Q15: =F20 -> $72,000 | R15: 1.8 | S15: =J19 -> 1.630 | T15: =$B$7 -> 72% | U15: =PRODUCT(Q15:T15) -> 152,099 | V15: 1.000 | W15: 1.000 | X15: 0.926 | Y15: =PRODUCT(U15:X15) -> 140,843
E16: Policy | F16: Gross | H16: Current Increased Limits Factors | N16: =YEAR(B20) -> 2023 | O16: Products | P16: 1st yr CM | Q16: =F20 -> $72,000 | R16: 4.1 | S16: =J19 -> 1.630 | T16: 72% | U16: 346,447 | V16: 1.000 | W16: 1.000 | X16: 0.901 | Y16: 312,148
E17: Limits | F17: Annual | H17: Aggregate Limit | N17: =YEAR(B21) -> 2022 | O17: Prem/Ops | P17: Occurrence | Q17: =F21 -> $33,000 | R17: 7.9 | S17: =I19 -> 1.350 | T17: 72% | U17: 253,400 | V17: 1.000 | W17: 1.000 | X17: 0.892 | Y17: 226,033
B18: Effective Date | C18: Policy Type | E18: (occ/agg) | F18: Sales | H18: 200k | I18: 250k | J18: 500k | N18: =YEAR(B21) -> 2022 | O18: Products | P18: Occurrence | Q18: =F21 -> $33,000 | R18: 5.4 | S18: =I19 -> 1.350 | T18: 72% | U18: 173,210 | V18: 1.000 | W18: 1.000 | X18: 0.854 | Y18: 147,922
B19: =DATE(YEAR(TODAY())-1,12,1) -> 2024-12-01 | C19: 2nd-year Claims-Made | E19: 250k/500k | F19: $108,000 | G19: 100k | H19: 1.000 | I19: 1.350 | J19: 1.630 | N19: =YEAR(B22) -> 2021 | O19: Prem/Ops | P19: Occurrence | Q19: =F22 -> $16,000 | R19: 7.9 | S19: =H19 -> 1.000 | T19: 72% | U19: 91,008 | V19: 1.000 | W19: 1.000 | X19: 0.858 | Y19: 78,085
B20: =DATE(YEAR(TODAY())-2,12,1) -> 2023-12-01 | C20: 1st-year Claims-Made | E20: 150k/500k | F20: $72,000 | G20: 150k | H20: 1.150 | I20: 1.290 | J20: 1.810 | N20: =YEAR(B22) -> 2021 | O20: Products | P20: Occurrence | Q20: =F22 -> $16,000 | R20: 5.4 | S20: =H19 -> 1.000 | T20: 72% | U20: 62,208 | V20: 1.000 | W20: 1.000 | X20: 0.810 | Y20: 50,388
B21: =DATE(YEAR(TODAY())-3,12,1) -> 2022-12-01 | C21: Occurrence | E21: 100k/250k | F21: $33,000 | G21: 250k | H21: 1.330 | I21: 1.460 | J21: 1.950 | X21: CSLC = | Y21: =SUM(Y15:Y20) -> 955,420
B22: =DATE(YEAR(TODAY())-4,12,1) -> 2021-12-01 | C22: Occurrence | E22: 100k/200k | F22: $16,000
A25: (a) | B25: Briefly explain why the Company Subject Loss Cost should be calculated using the Historical Exposures at Present Company Rates
A26: =INDEX('Point Grid'!$C$8:$I$27,MATCH($A$1,'Point Grid'!$A$8:$A$27,0),MATCH(A25,'Point Grid'!$C$7:$I$7,0)) -> 0.75 | B26: approach instead of the standard approach or the Present Average Company Rates approach.
A27: 0.75
A29: (b) | B29: Calculate the Company Subject Loss Cost using the Historical Exposures at Present Company Rates approach using the information
A30: =INDEX('Point Grid'!$C$8:$I$27,MATCH($A$1,'Point Grid'!$A$8:$A$27,0),MATCH(A29,'Point Grid'!$C$7:$I$7,0)) -> 2 | B30: provided below.
A31: 2 | C31: Table 13B
C32: Sub-line | D32: Occurrence | E32: 4th-yr CM | F32: 3rd-yr CM | G32: 2nd-yr CM | H32: 1st-yr CM
C33: Prem/Ops | D33: 1.00 | E33: 1.14 | F33: 1.20 | G33: 1.32 | H33: 1.62
C34: Products | D34: 1.00 | E34: 1.51 | F34: 1.59 | G34: 2.03 | H34: 2.39
C36: Table 13C
C37: Sub-line | D37: Occurrence | E37: 4th-yr CM | F37: 3rd-yr CM | G37: 2nd-yr CM | H37: 1st-yr CM
C38: Prem/Ops | D38: 1.00 | E38: 0.84 | F38: 0.78 | G38: 0.67 | H38: 0.47
C39: Products | D39: 1.00 | E39: 0.49 | F39: 0.43 | G39: 0.35 | H39: 0.22
C41: Table 14
C42: Year of Experience Period | D42: Sub-line | E42: Rule 5B | F42: Rule 5C
C43: Latest Year | D43: Prem/Ops | E43: 0.907 | F43: 0.926
D44: Products | E44: 0.882 | F44: 0.901
C45: 2nd Latest Year | D45: Prem/Ops | E45: 0.864 | F45: 0.892
D46: Products | E46: 0.828 | F46: 0.854
C47: 3rd Latest Year | D47: Prem/Ops | E47: 0.823 | F47: 0.858
D48: Products | E48: 0.777 | F48: 0.810

Sheet 8
A1: =VALUE(MID(CELL("filename",A1),FIND("]",CELL("filename",A1))+1,LEN(CELL("filename",A1))-FIND("]",CELL("filename",A1))+1)) -> 8 | B1: Finished | F1: Navigator | I1: Solution
H2: a.) | I2: Apply the quintiles test. Group the insureds into five groups, ordered by increasing experience mod.
A3: Points | B3: The following information was taken from two different experience rating plans: | I3: Use weighted manual and standard loss ratios.
A4: =INDEX('Point Grid'!B:B,MATCH('8'!A1,'Point Grid'!A:A,0)) -> 3.5 | C4: Experience Mod | E4: Experience Data | N4: Weighted Average Mods | Q4: Standard Loss Ratios
B5: Insured | C5: Plan A | D5: Plan B | E5: Manual Premium ($) | F5: Losses ($) | I5: Quintile | J5: Contains | L5: Manual Premium | M5: Losses | N5: Plan A | O5: Plan B | P5: Manual LR | Q5: Plan A | R5: Plan B
B6: 1 | C6: 0.62 | D6: 0.66 | E6: 100,000 | F6: 65,000 | I6: A | J6: 1 | K6: 2 | L6: =SUMIFS($E$6:$E$15,$B$6:$B$15,J6)+SUMIFS($E$6:$E$15,$B$6:$B$15,K6) -> 180,000 | M6: =SUMIFS($F$6:$F$15,$B$6:$B$15,J6)+SUMIFS($F$6:$F$15,$B$6:$B$15,K6) -> 145,000 | N6: =(SUMIFS($E$6:$E$15,$B$6:$B$15,J6)*SUMIFS($C$6:$C$15,$B$6:$B$15,J6)+SUMIFS($E$6:$E$15,$B$6:$B$15,K6)*SUMIFS($C$6:$C$15,$B$6:$B$15,K6))/(SUMIFS($E$6:$E$15,$B$6:$B$15,J6)+SUMIFS($E$6:$E$15,$B$6:$B$15,K6)) -> 0.687 | O6: =(SUMIFS($E$6:$E$15,$B$6:$B$15,J6)*SUMIFS($D$6:$D$15,$B$6:$B$15,J6)+SUMIFS($E$6:$E$15,$B$6:$B$15,K6)*SUMIFS($D$6:$D$15,$B$6:$B$15,K6))/(SUMIFS($E$6:$E$15,$B$6:$B$15,J6)+SUMIFS($E$6:$E$15,$B$6:$B$15,K6)) -> 0.727 | P6: =M6/L6 -> 0.806 | Q6: =M6/(N6*L6) -> 1.173 | R6: =M6/(O6*L6) -> 1.109
B7: 2 | C7: 0.77 | D7: 0.81 | E7: 80,000 | F7: 80,000 | I7: B | J7: 3 | K7: 4 | L7: =SUMIFS($E$6:$E$15,$B$6:$B$15,J7)+SUMIFS($E$6:$E$15,$B$6:$B$15,K7) -> 180,000 | M7: =SUMIFS($F$6:$F$15,$B$6:$B$15,J7)+SUMIFS($F$6:$F$15,$B$6:$B$15,K7) -> 191,000 | N7: =(SUMIFS($E$6:$E$15,$B$6:$B$15,J7)*SUMIFS($C$6:$C$15,$B$6:$B$15,J7)+SUMIFS($E$6:$E$15,$B$6:$B$15,K7)*SUMIFS($C$6:$C$15,$B$6:$B$15,K7))/(SUMIFS($E$6:$E$15,$B$6:$B$15,J7)+SUMIFS($E$6:$E$15,$B$6:$B$15,K7)) -> 0.938 | O7: =(SUMIFS($E$6:$E$15,$B$6:$B$15,J7)*SUMIFS($D$6:$D$15,$B$6:$B$15,J7)+SUMIFS($E$6:$E$15,$B$6:$B$15,K7)*SUMIFS($D$6:$D$15,$B$6:$B$15,K7))/(SUMIFS($E$6:$E$15,$B$6:$B$15,J7)+SUMIFS($E$6:$E$15,$B$6:$B$15,K7)) -> 0.960 | P7: =M7/L7 -> 1.061 | Q7: =M7/(N7*L7) -> 1.132 | R7: =M7/(O7*L7) -> 1.105
B8: 3 | C8: 0.92 | D8: 0.96 | E8: 100,000 | F8: 95,000 | I8: C | J8: 5 | K8: 6 | L8: =SUMIFS($E$6:$E$15,$B$6:$B$15,J8)+SUMIFS($E$6:$E$15,$B$6:$B$15,K8) -> 180,000 | M8: =SUMIFS($F$6:$F$15,$B$6:$B$15,J8)+SUMIFS($F$6:$F$15,$B$6:$B$15,K8) -> 199,000 | N8: =(SUMIFS($E$6:$E$15,$B$6:$B$15,J8)*SUMIFS($C$6:$C$15,$B$6:$B$15,J8)+SUMIFS($E$6:$E$15,$B$6:$B$15,K8)*SUMIFS($C$6:$C$15,$B$6:$B$15,K8))/(SUMIFS($E$6:$E$15,$B$6:$B$15,J8)+SUMIFS($E$6:$E$15,$B$6:$B$15,K8)) -> 1.013 | O8: =(SUMIFS($E$6:$E$15,$B$6:$B$15,J8)*SUMIFS($D$6:$D$15,$B$6:$B$15,J8)+SUMIFS($E$6:$E$15,$B$6:$B$15,K8)*SUMIFS($D$6:$D$15,$B$6:$B$15,K8))/(SUMIFS($E$6:$E$15,$B$6:$B$15,J8)+SUMIFS($E$6:$E$15,$B$6:$B$15,K8)) -> 0.992 | P8: =M8/L8 -> 1.106 | Q8: =M8/(N8*L8) -> 1.091 | R8: =M8/(O8*L8) -> 1.114
B9: 4 | C9: 0.96 | D9: 0.96 | E9: 80,000 | F9: 96,000 | I9: D | J9: 7 | K9: 8 | L9: =SUMIFS($E$6:$E$15,$B$6:$B$15,J9)+SUMIFS($E$6:$E$15,$B$6:$B$15,K9) -> 180,000 | M9: =SUMIFS($F$6:$F$15,$B$6:$B$15,J9)+SUMIFS($F$6:$F$15,$B$6:$B$15,K9) -> 215,500 | N9: =(SUMIFS($E$6:$E$15,$B$6:$B$15,J9)*SUMIFS($C$6:$C$15,$B$6:$B$15,J9)+SUMIFS($E$6:$E$15,$B$6:$B$15,K9)*SUMIFS($C$6:$C$15,$B$6:$B$15,K9))/(SUMIFS($E$6:$E$15,$B$6:$B$15,J9)+SUMIFS($E$6:$E$15,$B$6:$B$15,K9)) -> 1.078 | O9: =(SUMIFS($E$6:$E$15,$B$6:$B$15,J9)*SUMIFS($D$6:$D$15,$B$6:$B$15,J9)+SUMIFS($E$6:$E$15,$B$6:$B$15,K9)*SUMIFS($D$6:$D$15,$B$6:$B$15,K9))/(SUMIFS($E$6:$E$15,$B$6:$B$15,J9)+SUMIFS($E$6:$E$15,$B$6:$B$15,K9)) -> 1.064 | P9: =M9/L9 -> 1.197 | Q9: =M9/(N9*L9) -> 1.111 | R9: =M9/(O9*L9) -> 1.125
B10: 5 | C10: 1.00 | D10: 0.97 | E10: 100,000 | F10: 97,000 | I10: E | J10: 9 | K10: 10 | L10: =SUMIFS($E$6:$E$15,$B$6:$B$15,J10)+SUMIFS($E$6:$E$15,$B$6:$B$15,K10) -> 180,000 | M10: =SUMIFS($F$6:$F$15,$B$6:$B$15,J10)+SUMIFS($F$6:$F$15,$B$6:$B$15,K10) -> 225,000 | N10: =(SUMIFS($E$6:$E$15,$B$6:$B$15,J10)*SUMIFS($C$6:$C$15,$B$6:$B$15,J10)+SUMIFS($E$6:$E$15,$B$6:$B$15,K10)*SUMIFS($C$6:$C$15,$B$6:$B$15,K10))/(SUMIFS($E$6:$E$15,$B$6:$B$15,J10)+SUMIFS($E$6:$E$15,$B$6:$B$15,K10)) -> 1.162 | O10: =(SUMIFS($E$6:$E$15,$B$6:$B$15,J10)*SUMIFS($D$6:$D$15,$B$6:$B$15,J10)+SUMIFS($E$6:$E$15,$B$6:$B$15,K10)*SUMIFS($D$6:$D$15,$B$6:$B$15,K10))/(SUMIFS($E$6:$E$15,$B$6:$B$15,J10)+SUMIFS($E$6:$E$15,$B$6:$B$15,K10)) -> 1.098 | P10: =M10/L10 -> 1.250 | Q10: =M10/(N10*L10) -> 1.076 | R10: =M10/(O10*L10) -> 1.139
B11: 6 | C11: 1.03 | D11: 1.02 | E11: 80,000 | F11: 102,000
B12: 7 | C12: 1.06 | D12: 1.06 | E12: 100,000 | F12: 107,000 | I12: Manual Premium Weighted Averages | P12: =SUMPRODUCT(P6:P10,L6:L10)/SUM(L6:L10) -> 1.084 | Q12: =SUMPRODUCT(Q6:Q10,L6:L10)/SUM(L6:L10) -> 1.116 | R12: =SUMPRODUCT(R6:R10,L6:L10)/SUM(L6:L10) -> 1.118
B13: 8 | C13: 1.10 | D13: 1.07 | E13: 80,000 | F13: 108,500
B14: 9 | C14: 1.14 | D14: 1.08 | E14: 100,000 | F14: 110,000 | I14: Calculating Sample Variances
B15: 10 | C15: 1.19 | D15: 1.12 | E15: 80,000 | F15: 115,000 | I15: Quintile | J15: (x-xavg)2 | K15: (y - yavg)2 | L15: (z- zavg)2 | N15: Alice: "In this case you could have used Excel's VAR.S() function
I16: A | J16: =(P6-$P$12)^2 -> 0.077 | K16: =(Q6-$Q$12)^2 -> 0.003 | L16: =(R6-$R$12)^2 -> 0.000 | N16: since all quintiles have the same manual premium volume."
B17: All insureds are in the same industry. However, some are smaller firms than others. | I17: B | J17: =(P7-$P$12)^2 -> 0.001 | K17: =(Q7-$Q$12)^2 -> 0.000 | L17: =(R7-$R$12)^2 -> 0.000
I18: C | J18: =(P8-$P$12)^2 -> 0.000 | K18: =(Q8-$Q$12)^2 -> 0.001 | L18: =(R8-$R$12)^2 -> 0.000
A19: (a) | B19: Demonstrate whether Plan A or Plan B appears to be more equitable according to: | I19: D | J19: =(P9-$P$12)^2 -> 0.013 | K19: =(Q9-$Q$12)^2 -> 0.000 | L19: =(R9-$R$12)^2 -> 0.000
A20: =INDEX('Point Grid'!$C$8:$I$27,MATCH($A$1,'Point Grid'!$A$8:$A$27,0),MATCH(A19,'Point Grid'!$C$7:$I$7,0)) -> 3 | B20: (i) the quintiles test | I20: E | J20: =(P10-$P$12)^2 -> 0.028 | K20: =(Q10-$Q$12)^2 -> 0.002 | L20: =(R10-$R$12)^2 -> 0.000
A21: 3 | B21: (ii) the efficiency test
J22: Manual LR | K22: Std LR A | L22: Std LR B
A23: (b) | B23: Briefly explain whether Plan A or Plan B gives too much credit for good experience. | I23: Sample Variance | J23: =SUM(J16:J20)/(COUNTA(I16:I20)-1) -> 0.030 | K23: =SUM(K16:K20)/(COUNTA(I16:I20)-1) -> 0.001 | L23: =SUM(L16:L20)/(COUNTA(I16:I20)-1) -> 0.000
A24: =INDEX('Point Grid'!$C$8:$I$27,MATCH($A$1,'Point Grid'!$A$8:$A$27,0),MATCH(A23,'Point Grid'!$C$7:$I$7,0)) -> 0.5
A25: 0.5 | J25: Plan A | K25: Plan B
I26: Efficiency Stat | J26: =K23/J23 -> 0.049 | K26: =L23/J23 -> 0.006
N27: Plan A | O27: Plan B
I28: Difference between largest and smallest standard loss ratios | N28: =MAX(Q6:Q10)-MIN(Q6:Q10) -> 0.098 | O28: =MAX(R6:R10)-MIN(R6:R10) -> 0.033
I30: Since Plan B has the smallest difference between the largest and smallest standard loss ratios it performs better than Plan A according
I31: to the quintiles test.
I33: Further, Plan B has the lowest efficiency test statistic which indicates it performs better than Plan A.
H35: b.) | I35: Plan A gives too much credit for good experience because its standard loss ratios have a downward trend.

Sheet 9
A1: =VALUE(MID(CELL("filename",A1),FIND("]",CELL("filename",A1))+1,LEN(CELL("filename",A1))-FIND("]",CELL("filename",A1))+1)) -> 9 | B1: Finished | F1: Navigator | I1: Solution
H2: a.) | I2: Two goals of experience rating are:
A3: Points | I3: 1. Provide an incentive for safety improvements.
A4: =INDEX('Point Grid'!B:B,MATCH('9'!A1,'Point Grid'!A:A,0)) -> 3.5 | I4: 2. Increase rating equitability by charging rates which better reflect risk.
A6: (a) | B6: Identify and explain two goals of experience rating. | H6: b.) | I6: The experience period is January 1, 2017 through January 1, 2019.
A7: =INDEX('Point Grid'!$C$8:$I$27,MATCH($A$1,'Point Grid'!$A$8:$A$27,0),MATCH(A6,'Point Grid'!$C$7:$I$7,0)) -> 1 | I7: The construction company has had increasing loss experience but their manual premiums have grown materially.
A8: 1 | I8: Losses are growing slower than manual premiums which suggests the experience rating is providing an incentive for safety improvements.
I9: A debit mod is indicated because losses are consistently greater than manual premiums.
A10: (b) | B10: Given the following Workers' Compensation information for a Construction company: | I10: The debit mod improves rating equity because it allows more (standard) premium to be collected on this risk. This reduces the
A11: =INDEX('Point Grid'!$C$8:$I$27,MATCH($A$1,'Point Grid'!$A$8:$A$27,0),MATCH(A10,'Point Grid'!$C$7:$I$7,0)) -> 1 | I11: need for the insurer to subsidize it using other risks with better experience.
A12: 1 | C12: Policy Year | D12: Loss Experience | E12: Manual Premium
C13: 2017 | D13: 1,000,000 | E13: 500,000 | H13: c.) | I13: i.) Assuming the company does not already have some form of on-site medical team in the experience period (2018 – 2020).
C14: 2018 | D14: 1,100,000 | E14: 800,000 | I14: There is no impact to the experience modification for 2022 because the experience period is not affected by this change.
C15: 2019 | D15: 1,400,000 | E15: 1,200,000
I16: ii.) Since the on-site medical team is new in 2022 and should improve loss experience through reducing the severity of injuries for example,
B17: Assume: | I17: a schedule credit modification is suitable for 2022.
B18: • The policy period being rated is January 1, 2021 to January 1, 2022.
I19: iii.) The experience mod for 2024 considers experience within 2020 – 2022.
B20: 1,100,000 | C20: 2021 indicated manual premium | I20: Thus, one year of the experience period will reflect the safety improvements of having an on-site medical team.
B21: 1.25 | C21: 2021 experience modification factor | I21: We expect the experience modification factor to reduce, all else being equal.
B23: Discuss whether each of the two goals identified in part (a) above are fulfilled.
A25: (c) | B25: The Construction company plans to add an on-site medical team in 2022.
A26: =INDEX('Point Grid'!$C$8:$I$27,MATCH($A$1,'Point Grid'!$A$8:$A$27,0),MATCH(A25,'Point Grid'!$C$7:$I$7,0)) -> 1.5 | B26: Briefly discuss the potential impact of this to:
A27: 1.5 | B27: (i) the experience modification for 2022
B28: (ii) the schedule modification for 2022
B29: (iii) the experience modification for 2024.

Sheet 10
A1: =VALUE(MID(CELL("filename",A1),FIND("]",CELL("filename",A1))+1,LEN(CELL("filename",A1))-FIND("]",CELL("filename",A1))+1)) -> 10 | B1: Finished | G1: Navigator | J1: Solution
I2: a.) | J2: The experience period is January 1, 2019 – January 1, 2021.
A3: Points | B3: Both Employer A and Employer B want to purchase Workers' Compensation insurance in Alabama. | J3: We need either the sum of the latest two years in the experience period to exceed the Column A value, or
A4: =INDEX('Point Grid'!B:B,MATCH('10'!A1,'Point Grid'!A:A,0)) -> 5.5 | B4: The effective date is January 1, 2023 for each policy. The following information applies: | J4: the average of the three years to exceed the Column B value.
B6: Policy Effective Date | C6: Months of Data | D6: Subject Premium | J6: Employer | K6: Latest 2 | L6: 3-yr Avg
D7: Employer A | E7: Employer B | J7: A | K7: =SUM(D9:D10) -> 11,500 | L7: =AVERAGE(D9:D11) -> 5,333
B8: 2022-01-01 | C8: 12 | D8: 4,500 | E8: 3,000 | J8: B | K8: =SUM(E9:E10) -> 10,000 | L8: =AVERAGE(E9:E11) -> 5,667
B9: 2021-01-01 | C9: 12 | D9: 6,000 | E9: 5,000
B10: 2020-01-01 | C10: 12 | D10: 5,500 | E10: 5,000 | J10: Employer A qualifies for experience rating because the sum of their latest two years in the experience period is at least
B11: 2019-01-01 | C11: 12 | D11: 4,500 | E11: 7,000 | J11: the Column A value.
B12: 2018-01-01 | C12: 12 | D12: 10,000 | E12: 10,000
J13: Employer B qualifies for experience rating because they met the second condition, the average of the three years in the
B14: Expected Loss | D14: 19,600 | E14: 20,500 | J14: experience period is at least the Column B value.
B15: Expected Excess Loss | D15: 16,072 | E15: 15,744
I16: b.) | J16: Employer A – Only the first two claims are in the experience period.
B17: Historical Claim Data | J17: Claim Amount | K17: Ap | L17: Ae | M17: Notes
B18: Employer | C18: Accident Date | D18: Claim Amount | E18: Claim Description | J18: =D19 -> 8,000 | K18: =30%*MIN(J18,$C$40) -> 1,575 | L18: =30%*J18-K18 -> 825 | M18: Med only so reduce by 70%
B19: A | C19: 2020-07-01 | D19: 8,000 | E19: Med only | J19: =D20 -> 160,000 | K19: =MIN(J19,$C$40) -> 5,250 | L19: =J19-K19 -> 154,750 | M19: Below state single accident threshold so no capping.
B20: A | C20: 2019-05-23 | D20: 160,000 | E20: Wage loss | J20: Total | K20: =SUM(K18:K19) -> 6,825 | L20: =SUM(L18:L19) -> 155,575
B21: A | C21: 2018-03-28 | D21: 400,000 | E21: 3 claims from one occurrence - wage loss
B22: B | C22: 2022-02-10 | D22: 10,000 | E22: Med only | J22: Expected Primary Loss | L22: =D14-D15 -> 3,528
B23: B | C23: 2021-03-20 | D23: 175,000 | E23: Disease loss | J23: Expected Excess Loss | L23: =D15 -> 16,072
B24: B | C24: 2020-09-01 | D24: 428,000 | E24: 4 claims from one occurrence - wage loss
B25: B | C25: 2019-06-05 | D25: 170,000 | E25: Med only | J25: B = | K25: =D48 -> 17,500 | M25: Look up based on E = | O25: =D14 -> 19,600
J26: W = | K26: =D44 -> 0.08
B27: Use the NCCI's Experience Rating Plan Manual for Workers' Compensation and Employers Liability Insurance
B28: to answer the following questions:
A30: (a) | B30: Demonstrate whether each employer qualifies for experience rating. | J30: Initial Mod = | K30: =ROUND((K20+(1-K26)*L23+K25+K26*L20)/(L22+(1-K26)*L23+K25+K26*L23),2) -> 1.390 | L30: Make sure to round to two decimal places
A31: =INDEX('Point Grid'!$C$8:$I$27,MATCH($A$1,'Point Grid'!$A$8:$A$27,0),MATCH(A30,'Point Grid'!$C$7:$I$7,0)) -> 2.5
A32: 2.5
A34: (b) | B34: For the employer(s) that qualify for experience rating, calculate the experience rating modification(s). | J34: Max. Mod = | K34: =1.1+0.0004*(O25/E51) -> 2.220
A35: =INDEX('Point Grid'!$C$8:$I$27,MATCH($A$1,'Point Grid'!$A$8:$A$27,0),MATCH(A34,'Point Grid'!$C$7:$I$7,0)) -> 2.5 | B35: You may use the following tables: | J35: Final Mod = | K35: =MIN(K34,K30) -> 1.390
A36: 2.5 | C36: State | D36: Column A | E36: Column B
C37: AL | D37: 11,000 | E37: 5,500 | J37: Employer B – only the last three claims are in the experience period.
C38: State table of Subject Premium Eligibility Amounts | J38: Expected Primary Loss | L38: =E14-E15 -> 4,756
J39: Expected Excess Loss | L39: =E15 -> 15,744
C40: $5,250 | D40: AL Primary/Excess Split Point
J41: B = | K41: =D48 -> 17,500 | M41: Look up based on E = | O41: =E14 -> 20,500
C42: Expected Losses | D42: Weighting Value | J42: W = | K42: =D45 -> 0.09
C43: 10,482 – 15,135 | D43: 0.07
C44: 15,136 – 19,890 | D44: 0.08 | J44: Claim Amount | K44: Ap | L44: Ae | M44: Notes
C45: 19,891 – 33,268 | D45: 0.09 | J45: =D23 -> 175,000 | K45: =MIN(J45,$C$40) -> 5,250 | L45: =J45-K45 -> 169,750 | M45: Disease loss, no capping required (see side calculation)
J46: =D24 -> 428,000 | K46: =MIN(J46,2*$C$40) -> 10,500 | L46: =MIN(J46,E53)-K46 -> 340,500 | M46: Capped at state multiple claim limit, actual primary loss is doubled
C47: Expected Losses | D47: Ballast Value | J47: =D25 -> 170,000 | K47: =30%*MIN(J47,$C$40) -> 1,575 | L47: =30%*J47-K47 -> 49,425 | M47: Med only so reduce by 70%
C48: 0 – 37,651 | D48: 17,500 | J48: Total | K48: =SUM(K45:K47) -> 17,325 | L48: =SUM(L45:L47) -> 559,675
C49: 37,652 – 64,802 | D49: 21,000
J50: Disease losses
C51: G | E51: 7 | J51: Each disease loss is capped at the applicable state per claim and multiple claim limits first.
C52: State Per Claim Accident Limit | E52: 175,500 | J52: In this case, neither cap applies.
C53: State Multiple Claim Accident Limit | E53: 351,000 | J53: Then, the sum of all capped disease losses is capped at:
J54: 3*(State Per Claim Accident Limit) + 120% * (Expected Loss for experience period)
A55: (c) | B55: Given the payroll information below for Employer A and your result from part b.) above, determine the | J55: which in this case is:
A56: =INDEX('Point Grid'!$C$8:$I$27,MATCH($A$1,'Point Grid'!$A$8:$A$27,0),MATCH(A55,'Point Grid'!$C$7:$I$7,0)) -> 0.5 | B56: standard premium for Employer A's policy effective January 1, 2023. | J56: =3*E52+120%*O41 -> 551,100
A57: 0.5 | J57: So in this case, no disease loss capping is required.
B58: $7.00 | C58: Employer A Manual Rate per $100 Payroll
J59: Initial Mod = | K59: =ROUND((K48+(1-K42)*L39+K41+K42*L48)/(L38+(1-K42)*L39+K41+K42*L39),2) -> 2.620 | L59: Make sure to round to two decimal places
B60: Policy Effective Date | C60: Audited Payroll | J60: Max. Mod = | K60: =ROUND(1.1+0.0004*(O41/E51),2) -> 2.270
B61: 2023-01-01 | C61: 426,000 | D61: (Estimated) | J61: Final Mod = | K61: =MIN(K59,K60) -> 2.270
B62: 2022-01-01 | C62: 419,000 | D62: (Estimated)
B63: 2021-01-01 | C63: 361,000 | I63: c.) | J63: Standard Premium = Estimated Policy Period Payroll / 100 * Rate per $100 Payroll * Experience Mod
B64: 2020-01-01 | C64: 330,000 | J64: =C61/100*B58*K35 -> $41,450
B65: 2019-01-01 | C65: 264,000
B66: 2018-01-01 | C66: 184,000

Sheet 11
A1: =VALUE(MID(CELL("filename",A1),FIND("]",CELL("filename",A1))+1,LEN(CELL("filename",A1))-FIND("]",CELL("filename",A1))+1)) -> 11 | B1: Finished | F1: Navigator | I1: Solution
H2: a.) | I2: We'll assume Group A is really 3 or more years accident free.
A3: Points | B3: The following data were compiled from ABC Insurance Company's portfolio of | I3: First calculate the claim frequency for each group using the earned premium as the exposure base as this is the only option.
A4: =INDEX('Point Grid'!B:B,MATCH('11'!A1,'Point Grid'!A:A,0)) -> 3.5 | B4: Private Passenger Auto policies. | I4: Then calculate the relative claim frequency for each group to the total claim frequency and set the experience modification
I5: equal to the relative claim frequency
B6: Group | C6: Number of accident | D6: Earned Premium at | E6: Number of
C7: free years | D7: Present Group D | E7: Claims | I7: Years | K7: Relative
D8: Rates | E8: Incurred | I8: Claim Free | J8: Frequency | K8: Frequency | L8: Mod | M8: Credibility
B9: A | C9: 3 | D9: 100,000,000 | E9: 120,000 | I9: 3+ | J9: =SUM(E9:$E$9)/SUM(D9:$D$9) -> 0.0012 | K9: =J9/$J$12 -> 0.7307 | L9: =K9 -> 0.7307 | M9: =1-L9 -> 0.2693
B10: B | C10: 2 | D10: 10,000,000 | E10: 25,000 | I10: 2+ | J10: =SUM(E$9:$E10)/SUM(D$9:$D10) -> 0.0013 | K10: =J10/$J$12 -> 0.8026 | L10: =K10 -> 0.8026 | M10: =1-L10 -> 0.1974
B11: C | C11: 1 | D11: 17,000,000 | E11: 44,000 | I11: 1+ | J11: =SUM(E$9:$E11)/SUM(D$9:$D11) -> 0.0015 | K11: =J11/$J$12 -> 0.9061 | L11: =K11 -> 0.9061 | M11: =1-L11 -> 0.0939
B12: D | C12: 0 | D12: 10,000,000 | E12: 36,000 | I12: Total | J12: =SUM(E$9:$E12)/SUM(D$9:$D12) -> 0.0016
A14: (a) | B14: Calculate the credibility of a single car for each of the following ranges of accident-free years: | I14: Since we know the k+ group had 0 claims in the past k years for k = 1, 2, 3, the experience modification calculation,
A15: =INDEX('Point Grid'!$C$8:$I$27,MATCH($A$1,'Point Grid'!$A$8:$A$27,0),MATCH(A14,'Point Grid'!$C$7:$I$7,0)) -> 2 | B15: i.) 1 or more | I15: Mod = ZR + (1 - Z) reduces to Mod = 1 - Z
A16: 2 | B16: ii.) 2 or more
B17: iii.) 3 or more | H17: b.) | I17: Relative credibility for | K17: ABC | L17: XYZ
K18: =M9/$M$11 -> 2.870 | L18: =D21/$D$23 -> 2.333
A19: (b) | B19: The following table provides the single car credibility for the XYZ automobile insurance portfolio: | K19: =M10/$M$11 -> 2.103 | L19: =D22/$D$23 -> 1.667
A20: =INDEX('Point Grid'!$C$8:$I$27,MATCH($A$1,'Point Grid'!$A$8:$A$27,0),MATCH(A19,'Point Grid'!$C$7:$I$7,0)) -> 1 | C20: Accident-Free Years | D20: Single Car Credibility | K20: =M11/$M$11 -> 1.000 | L20: =D23/$D$23 -> 1.000
A21: 1 | C21: 3 or more | D21: 0.140
C22: 2 or more | D22: 0.100 | I22: ABC's relative credibilities are closer to 1, 2, 3 than XYZ's. We expect them to be close to 1, 2, 3 if the credibility
C23: 1 or more | D23: 0.060 | I23: is proportional to the number of years accident free.
I24: We can conclude either:
B25: Discuss two conclusions which can be drawn from the different credibility results of the ABC | I25: 1. XYZ has risks entering and leaving its classes whereas ABC's classes are relatively stable over time, or
B26: and XYZ portfolios. | I26: 2. XYZ has changing risk characteristics over time within its classes and ABC does not.
A28: (c) | B28: Explain why analysis of the two portfolios with different classification plans could assign | H28: c.) | I28: If a classification plan is highly refined then there is less unexplained variation between risks within the same class.
A29: =INDEX('Point Grid'!$C$8:$I$27,MATCH($A$1,'Point Grid'!$A$8:$A$27,0),MATCH(A28,'Point Grid'!$C$7:$I$7,0)) -> 0.5 | B29: different values to the credibility of the experience of a single car. | I29: This means experience rating is less useful and consequently we get lower credibilities.
A30: 0.5 | I30: Whereas a less refined rating plan has a lot of unexplained variation between risks within the same class, so
I31: experience rating is more useful and we get higher credibilities.

Sheet 12
A1: =VALUE(MID(CELL("filename",A1),FIND("]",CELL("filename",A1))+1,LEN(CELL("filename",A1))-FIND("]",CELL("filename",A1))+1)) -> 12 | B1: Finished | E1: Navigator | H1: Solution
G2: a.) | H2: Balance Equations
A3: Points | B3: Consider two policies: | K3: and
A4: =INDEX('Point Grid'!B:B,MATCH('12'!A1,'Point Grid'!A:A,0)) -> 2 | B4: • A retrospectively rated policy with no loss limit,
B5: • A retrospectively rated policy with a $500,000 loss limit.
H6: When there is a loss limitation, replace the denominators with
B7: Both policies are subject to the following parameters:
H8: Maximum Premium Factor = G / (Standard Premium) = | M8: =B9 -> 1.00
B9: 1.00 | C9: Maximum Premium Factor | H9: Minimum Premium Factor = H / (Standard Premium) = | M9: =B10 -> 0.40
B10: 0.40 | C10: Minimum Premium Factor | H10: Expected Loss & ALAE Ratio = E[A] / (Standard Premium) = | M10: =B12 -> 0.60
B11: 1.20 | C11: Loss Conversion Factor | H11: Expense and Profit Provision = e / (Standard Premium) = | M11: =B14 -> 0.35
B12: 0.60 | C12: Expected Loss & ALAE Ratio
B13: 1.05 | C13: Tax Multiplier | H13: Re-express the balance equations in terms of ratios to standard premium (SP)
B14: 0.35 | C14: Expense and Profit Provision
B15: 0.10 | C15: Loss Elimination Ratio at $500,000 | K15: and
A17: (a) | B17: Calculate the difference between the balance equations for the two policies.
A18: =INDEX('Point Grid'!$C$8:$I$27,MATCH($A$1,'Point Grid'!$A$8:$A$27,0),MATCH(A17,'Point Grid'!$C$7:$I$7,0)) -> 2 | H18: No Loss Limit
A19: 2 | H19: phi(r_H) - phi(r_G) = | J19: =((M11+M10)*B13-M9)/(B11*M10*B13) -> 0.79034
H20: r_G - r_H = | J20: =(M8-M9)/(B11*M10*B13) -> 0.79365
H22: $500,000 Loss Limit
H23: First calculate E[A_D] / (Standard Premium) using
H25: E[A_D] / SP = | I25: =(1-B15)*M10 -> 0.54 | J25: Again, we switch to working in terms of ratios to standard premium.
H27: Apply the balance equations with E[A_D] in the denominator instead.
H29: phi(r_H) - phi(r_G) = | J29: =((M11+M10)*B13-M9)/(B11*I25*B13) -> 0.87816 | L29: Alice: "It's fine to type out mathematical symbols, use _ to denote
H30: r_G - r_H = | J30: =(M8-M9)/(B11*I25*B13) -> 0.88183 | L30: subscripts, etc. in the exam to save time rather than messing around
L31: with the symbol feature in the Pearson VUE environment."
H32: 1st Equation Difference = | J32: =J29-J19 -> 0.08782
H33: 2nd Equation Difference = | J33: =J30-J20 -> 0.08818

Sheet 13
A1: =VALUE(MID(CELL("filename",A1),FIND("]",CELL("filename",A1))+1,LEN(CELL("filename",A1))-FIND("]",CELL("filename",A1))+1)) -> 13 | B1: Finished | E1: Navigator | H1: Solution
G2: a.) | H2: E[A] = | I2: =AVERAGE(C7:C21) -> 60.9% | J2: We can use a straight average since we're told all risks are approximately equal in size.
A3: Points | B3: The unlimited and limited loss ratios for 15 risks of | H3: E[A_D] = | I3: =AVERAGE(D7:D21) -> 51.9%
A4: =INDEX('Point Grid'!B:B,MATCH('13'!A1,'Point Grid'!A:A,0)) -> 4 | B4: approximately equal size are as follows:
C5: Loss Ratio
B6: Risk Number | C6: Unlimited | D6: Limited
B7: 3 | C7: 29% | D7: 6% | H7: LER = | I7: =(I2-I3)/I2 -> 0.149
B8: 4 | C8: 35% | D8: 6%
B9: 1 | C9: 14% | D9: 14% | G9: b.) | H9: Notice the risks are ordered by increasing unlimited loss ratio.
B10: 2 | C10: 25% | D10: 25% | H10: To build a Table M we need an entry for each desired entry ratio plus one for each actual entry ratio
B11: 5 | C11: 41% | D11: 41% | H11: There's no easy way to get a list of distinct entries in the Pearson VUE environment that we're aware of for now.
B12: 8 | C12: 63% | D12: 41%
B13: 6 | C13: 50% | D13: 45% | H13: Table M: Bold figures are the desired increments.
B14: 7 | C14: 50% | D14: 50% | H14: Loss Ratio | I14: Entry Ratio, r | J14: # risks | K14: # risks above | L14: % risks above | M14: phi(r)
B15: 9 | C15: 66% | D15: 66% | H15: 0% | I15: =H15/$I$2 -> 0.000 | J15: =COUNTIF($C$7:$C$21,H15) -> 0 | K15: =SUM(J16:$J$36) -> 15 | L15: =K15/$J$38 -> 100.0% | M15: =M16+L15*(I16-I15) -> 1.000
B16: 13 | C16: 99% | D16: 67% | H16: 10% | I16: =H16/$I$2 -> 0.164 | J16: =COUNTIF($C$7:$C$21,H16) -> 0 | K16: =SUM(J17:$J$36) -> 15 | L16: =K16/$J$38 -> 100.0% | M16: 0.836
B17: 10 | C17: 71% | D17: 71% | H17: 14% | I17: 0.230 | J17: 1 | K17: =SUM(J18:$J$36) -> 14 | L17: 93.3% | M17: 0.770
B18: 11 | C18: 75% | D18: 75% | H18: 20% | I18: 0.328 | J18: 0 | K18: =SUM(J19:$J$36) -> 14 | L18: 93.3% | M18: 0.678
B19: 14 | C19: 100% | D19: 75% | H19: 25% | I19: 0.410 | J19: 1 | K19: =SUM(J20:$J$36) -> 13 | L19: 86.7% | M19: 0.602
B20: 12 | C20: 96% | D20: 96% | H20: 29% | I20: 0.476 | J20: 1 | K20: =SUM(J21:$J$36) -> 12 | L20: 80.0% | M20: 0.545
B21: 15 | C21: 100% | D21: 100% | H21: 30% | I21: 0.492 | J21: 0 | K21: =SUM(J22:$J$36) -> 12 | L21: 80.0% | M21: 0.532
H22: 35% | I22: 0.574 | J22: 1 | K22: =SUM(J23:$J$36) -> 11 | L22: 73.3% | M22: 0.466
A23: (a) | B23: Calculate the loss elimination ratio. | H23: 40% | I23: 0.656 | J23: 0 | K23: =SUM(J24:$J$36) -> 11 | L23: 73.3% | M23: 0.406
A24: =INDEX('Point Grid'!$C$8:$I$27,MATCH($A$1,'Point Grid'!$A$8:$A$27,0),MATCH(A23,'Point Grid'!$C$7:$I$7,0)) -> 0.5 | H24: 41% | I24: 0.673 | J24: 1 | K24: =SUM(J25:$J$36) -> 10 | L24: 66.7% | M24: 0.394
A25: 0.5 | H25: 50% | I25: 0.821 | J25: 2 | K25: =SUM(J26:$J$36) -> 8 | L25: 53.3% | M25: 0.295
H26: 60% | I26: 0.985 | J26: 0 | K26: =SUM(J27:$J$36) -> 8 | L26: 53.3% | M26: 0.208
A27: (b) | B27: Calculate the Table M charges at loss ratios from 0% to 100% | H27: 63% | I27: 1.034 | J27: 1 | K27: =SUM(J28:$J$36) -> 7 | L27: 46.7% | M27: 0.182
A28: =INDEX('Point Grid'!$C$8:$I$27,MATCH($A$1,'Point Grid'!$A$8:$A$27,0),MATCH(A27,'Point Grid'!$C$7:$I$7,0)) -> 1.5 | B28: using increments of 10%. | H28: 66% | I28: 1.083 | J28: 1 | K28: =SUM(J29:$J$36) -> 6 | L28: 40.0% | M28: 0.159
A29: 1.5 | H29: 70% | I29: 1.149 | J29: 0 | K29: =SUM(J30:$J$36) -> 6 | L29: 40.0% | M29: 0.132
H30: 71% | I30: 1.165 | J30: 1 | K30: =SUM(J31:$J$36) -> 5 | L30: 33.3% | M30: 0.126
A31: (c) | B31: Calculate the Table L charges at loss ratios from 0% to 100% | H31: 75% | I31: 1.231 | J31: 1 | K31: =SUM(J32:$J$36) -> 4 | L31: 26.7% | M31: 0.104
A32: =INDEX('Point Grid'!$C$8:$I$27,MATCH($A$1,'Point Grid'!$A$8:$A$27,0),MATCH(A31,'Point Grid'!$C$7:$I$7,0)) -> 2 | B32: using increments of 10%. | H32: 80% | I32: 1.313 | J32: 0 | K32: =SUM(J33:$J$36) -> 4 | L32: 26.7% | M32: 0.082
A33: 2 | H33: 90% | I33: 1.477 | J33: 0 | K33: =SUM(J34:$J$36) -> 4 | L33: 26.7% | M33: 0.038
H34: 96% | I34: 1.575 | J34: 1 | K34: =SUM(J35:$J$36) -> 3 | L34: 20.0% | M34: 0.012
H35: 99% | I35: 1.625 | J35: 1 | K35: =SUM(J36:$J$36) -> 2 | L35: 13.3% | M35: =M36+L35*(I36-I35) -> 0.002
H36: 100% | I36: 1.641 | J36: 2 | K36: 0 | L36: 0.0% | M36: 0.000
H38: Total | J38: =SUM(J15:J36) -> 15 | K38: Use this to check you got all of the given loss ratios
G40: c.) | H40: To build the Table L we follow the same approach but use the limited loss ratios instead and add on the loss elimination ratio.
H41: Notice the entry ratio is still computed as a ratio to E[A] when building a Table L.
H43: Table L: Bold figures are the desired increments.
H44: Loss Ratio | I44: Entry Ratio | J44: # risks | K44: # risks above | L44: % risks above | M44: phi*_D(r)
H45: 0% | I45: =H45/$I$2 -> 0.000 | J45: =COUNTIF($D$7:$D$21,H45) -> 0 | K45: =SUM(J46:$J$66) -> 15 | L45: =K45/$J$68 -> 100.0% | M45: =M46+L45*(I46-I45) -> 1.000
H46: 6% | I46: =H46/$I$2 -> 0.098 | J46: =COUNTIF($D$7:$D$21,H46) -> 2 | K46: =SUM(J47:$J$66) -> 13 | L46: 86.7% | M46: 0.902
H47: 10% | I47: 0.164 | J47: 0 | K47: =SUM(J48:$J$66) -> 13 | L47: 86.7% | M47: 0.845
H48: 14% | I48: 0.230 | J48: 1 | K48: =SUM(J49:$J$66) -> 12 | L48: 80.0% | M48: 0.788
H49: 20% | I49: 0.328 | J49: 0 | K49: =SUM(J50:$J$66) -> 12 | L49: 80.0% | M49: 0.709
H50: 25% | I50: 0.410 | J50: 1 | K50: =SUM(J51:$J$66) -> 11 | L50: 73.3% | M50: 0.643
H51: 30% | I51: 0.492 | J51: 0 | K51: =SUM(J52:$J$66) -> 11 | L51: 73.3% | M51: 0.583
H52: 35% | I52: 0.574 | J52: 0 | K52: =SUM(J53:$J$66) -> 11 | L52: 73.3% | M52: 0.523
H53: 40% | I53: 0.656 | J53: 0 | K53: =SUM(J54:$J$66) -> 11 | L53: 73.3% | M53: 0.463
H54: 41% | I54: 0.673 | J54: 2 | K54: =SUM(J55:$J$66) -> 9 | L54: 60.0% | M54: 0.451
H55: 45% | I55: 0.739 | J55: 1 | K55: =SUM(J56:$J$66) -> 8 | L55: 53.3% | M55: 0.411
H56: 50% | I56: 0.821 | J56: 1 | K56: =SUM(J57:$J$66) -> 7 | L56: 46.7% | M56: 0.368
H57: 60% | I57: 0.985 | J57: 0 | K57: =SUM(J58:$J$66) -> 7 | L57: 46.7% | M57: 0.291
H58: 66% | I58: 1.083 | J58: 1 | K58: =SUM(J59:$J$66) -> 6 | L58: 40.0% | M58: 0.245
H59: 67% | I59: 1.100 | J59: 1 | K59: =SUM(J60:$J$66) -> 5 | L59: 33.3% | M59: 0.239
H60: 70% | I60: 1.149 | J60: 0 | K60: =SUM(J61:$J$66) -> 5 | L60: 33.3% | M60: 0.222
H61: 71% | I61: 1.165 | J61: 1 | K61: =SUM(J62:$J$66) -> 4 | L61: 26.7% | M61: 0.217
H62: 75% | I62: 1.231 | J62: 2 | K62: =SUM(J63:$J$66) -> 2 | L62: 13.3% | M62: 0.199
H63: 80% | I63: 1.313 | J63: 0 | K63: =SUM(J64:$J$66) -> 2 | L63: 13.3% | M63: 0.188
H64: 90% | I64: 1.477 | J64: 0 | K64: =SUM(J65:$J$66) -> 2 | L64: 13.3% | M64: 0.166
H65: 96% | I65: 1.575 | J65: 1 | K65: =SUM(J66:$J$66) -> 1 | L65: 6.7% | M65: =M66+L65*(I66-I65) -> 0.153
H66: 100% | I66: 1.641 | J66: 1 | K66: 0 | L66: =K66/$J$68 -> 0.0% | M66: =I7 -> 0.149
H68: Total | J68: =SUM(J45:J66) -> 15

Sheet 14
A1: =VALUE(MID(CELL("filename",A1),FIND("]",CELL("filename",A1))+1,LEN(CELL("filename",A1))-FIND("]",CELL("filename",A1))+1)) -> 14 | B1: Finished | H1: Navigator | K1: Solution
J2: a.) | K2: Calculate the deductible layer losses, given a claim occurred
A3: Points | B3: Given the following information: | K3: % of Claims | L3: Deductible
A4: =INDEX('Point Grid'!B:B,MATCH('14'!A1,'Point Grid'!A:A,0)) -> 3.25 | D4: Ground-up | K4: =C6 -> 45% | L4: =MIN(D6,$B$21) -> 22,000
C5: Percent of Claims | D5: Loss per Claim | K5: =C7 -> 20% | L5: =MIN(D7,$B$21) -> 35,000
C6: 45% | D6: 22,000 | K6: =C8 -> 15% | L6: =MIN(D8,$B$21) -> 100,000
C7: 20% | D7: 35,000 | K7: =C9 -> 15% | L7: =MIN(D9,$B$21) -> 100,000
C8: 15% | D8: 150,000 | K8: =C10 -> 5% | L8: =MIN(D10,$B$21) -> 100,000
C9: 15% | D9: 250,000
C10: 5% | D10: 1,000,000 | K10: Expected deductible losses, E[A_D] = | N10: =SUMPRODUCT(K4:K8,L4:L8) -> 51,900
B12: $24,793 | C12: Full Coverage Premium | K12: Expected unlimited losses, E[A] = | N12: =SUMPRODUCT(C6:C10,D6:D10) -> 126,900
B13: 59% | C13: Expected Ground-up Loss Ratio
B14: 10% | C14: ALAE as a % of losses (assume the deductible doesn't apply to ALAE) | K14: Expected % Deductible Loss = | N14: =N10/N12 -> 0.4090 | O14: This is the portion of losses we eliminate by introducing the deductible
B15: 4% | C15: Incremental Fixed Expenses for processing a deductible (% of deductible losses)
B16: 1% | C16: Load for uncollectible deductible payments (% of deductible losses)
B17: 8% | C17: Profit Provision | K17: Expected Ground-up loss | N17: =B12*B13 -> $14,627.87
B18: 5% | C18: Additional Risk Load (% of excess losses)
B19: 10% | C19: Commission | K19: Expected Deductible Loss | N19: =N17*N14 -> $5,982.56
B20: 5% | C20: Other Variable Expenses
B21: $100,000 | C21: Deductible | K21: ALAE | N21: =B14*N17 -> $1,462.79 | O21: Remember, ALAE is calculated on all losses, not just the portion in excess of the deductible.
K22: Fixed Expense | N22: =B15*N19 -> $239.30
A23: (a) | B23: Calculate the final premium for a policy with a $100,000 deductible. | K23: Credit Risk | N23: =B16*N19 -> $59.83
A24: =INDEX('Point Grid'!$C$8:$I$27,MATCH($A$1,'Point Grid'!$A$8:$A$27,0),MATCH(A23,'Point Grid'!$C$7:$I$7,0)) -> 3.25 | K24: Additional Risk Load | N24: =B18*(N17-N19) -> $432.27
A25: 3.25
K26: Now apply the standard pricing formula (loss + ALAE + fixed expense) / (1 - profit provision - variable expense - commission)
K28: Final Premium | N28: =((N17-N19)+N21+N22+N23+N24)/(1-B17-B19-B20) -> $14,077.26

Sheet 15
A1: =VALUE(MID(CELL("filename",A1),FIND("]",CELL("filename",A1))+1,LEN(CELL("filename",A1))-FIND("]",CELL("filename",A1))+1)) -> 15 | B1: Finished | F1: Navigator | I1: Solution
H2: a.) | I2: (i): H + I
A3: Points | B3: The diagram below exhibits cumulative distribution functions: | I3: (ii): B + E + H + I
A4: =INDEX('Point Grid'!B:B,MATCH('15'!A1,'Point Grid'!A:A,0)) -> 2 | B4: • F(y) represents aggregate loss ratios with no loss limit, and | I4: (iii): A + B
B5: • F*(y) represents aggregate loss ratios adjusted for a per-occurrence loss limit. | I5: (iv): (B + E + H) / (B + C + E + F + H + I) = B + E + H
I6: Alice: "You should remember the area under F equals 1 so the denominator is 1."
B7: The diagram is also partitioned into nine areas labeled with the letters from A to I.
H8: b.) | I8: Left Hand Side of Equation
I9: Table L Charge - Table M Charge = | L9: (B + E + H + I) - (H + I) = B + E
I11: Right Hand Side of Equation
I12: Table L Savings - Table M Savings = | L12: (A + B + D + E) - (A + D) = B + E
I14: LHS = RHS so the equation is valid.
A30: (a) | B30: Using the labels provided, give an algebraic expression for each of the following quantities:
A31: =INDEX('Point Grid'!$C$8:$I$27,MATCH($A$1,'Point Grid'!$A$8:$A$27,0),MATCH(A30,'Point Grid'!$C$7:$I$7,0)) -> 1 | B31: (i) The Table M Charge at rG
A32: 1 | B32: (ii) The Table L Charge at rG
B33: (iii) The Table L Savings at rH
B34: (iv) The Loss Elimination Ratio
A36: (b) | B36: Using the labels provided and the entry ratio rG, algebraically demonstrate whether the
A37: =INDEX('Point Grid'!$C$8:$I$27,MATCH($A$1,'Point Grid'!$A$8:$A$27,0),MATCH(A36,'Point Grid'!$C$7:$I$7,0)) -> 1 | B37: following equation is valid.
A38: 1
B39: Table L Charge - Table M Charge = Table L Savings - Table M Savings

Sheet 16
A1: =VALUE(MID(CELL("filename",A1),FIND("]",CELL("filename",A1))+1,LEN(CELL("filename",A1))-FIND("]",CELL("filename",A1))+1)) -> 16 | B1: Finished | F1: Navigator | I1: Solution
H2: a.) | I2: We need the capped pure premium distributions and then to calculate the variance and standard deviation.
A3: Points | B3: You believe the standard deviation of pure premiums is an appropriate measure of risk.
A4: =INDEX('Point Grid'!B:B,MATCH('16'!A1,'Point Grid'!A:A,0)) -> 2 | B4: You are given the following pure premium distribution: | I4: Cap at $2,000 | L4: Cap at $5,000
I5: Capped Amount | J5: Probability | L5: Capped Amount | M5: Probability
B6: Loss Amount | C6: Probability | I6: =MIN(B7,$B$12) -> $0 | J6: =C7 -> 90% | L6: =MIN(B7,$B$13) -> $0 | M6: =C7 -> 90%
B7: $0 | C7: 90% | I7: =MIN(B8,$B$12) -> $1,000 | J7: =C8 -> 9% | L7: =MIN(B8,$B$13) -> $1,000 | M7: =C8 -> 9%
B8: $1,000 | C8: 9% | I8: =MIN(B9,$B$12) -> $2,000 | J8: =C9 -> 1% | L8: =MIN(B9,$B$13) -> $5,000 | M8: =C9 -> 1%
B9: $10,000 | C9: 1%
I10: E[S] = | J10: =SUMPRODUCT(I6:I8,J6:J8) -> 110 | L10: E[S] = | M10: =SUMPRODUCT(L6:L8,M6:M8) -> 140
B11: 10% | C11: % of standard deviation of pure premium chosen as risk load | I11: E[S^2] = | J11: =SUMPRODUCT(I6:I8,I6:I8,J6:J8) -> 130000 | L11: E[S^2] = | M11: =SUMPRODUCT(L6:L8,L6:L8,M6:M8) -> 340000
B12: $2,000 | C12: Basic aggregate limit | I12: Var(S) = | J12: =J11-J10^2 -> 117900 | L12: Var(S) = | M12: =M11-M10^2 -> 320400
B13: $5,000 | C13: Aggregate limit on policy being priced | I13: Std Dev S = | J13: =SQRT(J12) -> 343.3656943 | L13: Std Dev S = | M13: =SQRT(M12) -> 566.0388679
I14: Risk Load = | J14: =B11*J13 -> 34.34 | L14: Risk Load = | M14: =B11*M13 -> 56.60
B15: You may assume there are no expenses.
I16: Risk Loaded ILF at $5,000 | K16: =(M10+M14)/(J10+J14) -> 1.362
A17: (a) | B17: Calculate the increased limit factor with risk load for a $5,000 aggregate policy limit.
A18: =INDEX('Point Grid'!$C$8:$I$27,MATCH($A$1,'Point Grid'!$A$8:$A$27,0),MATCH(A17,'Point Grid'!$C$7:$I$7,0)) -> 2
A19: 2

Sheet 17
A1: =VALUE(MID(CELL("filename",A1),FIND("]",CELL("filename",A1))+1,LEN(CELL("filename",A1))-FIND("]",CELL("filename",A1))+1)) -> 17 | B1: Finished | E1: Navigator | H1: Solution
G2: a.) | H2: Initial Loss in Layer | K2: Trend claims by one year
A3: Points | B3: An insurance company purchases Workers' Compensation excess of loss | H3: Loss Number | I3: Loss in Layer | K3: Loss Number | L3: Trended Loss | M3: Loss in Layer
A4: =INDEX('Point Grid'!B:B,MATCH(VALUE('17'!A1),'Point Grid'!A:A,0)) -> 1 | B4: coverage of $500,000 per claim. Losses in the current year are as follows: | H4: =B7 -> 1 | I4: =MIN($B$14,MAX(0,C7-$B$13)) -> 0 | K4: =B7 -> 1 | L4: =C7*(1+$B$15) -> 545,000 | M4: =MIN($B$14,MAX(0,L4-$B$13)) -> 45,000
H5: =B8 -> 2 | I5: =MIN($B$14,MAX(0,C8-$B$13)) -> 100,000 | K5: =B8 -> 2 | L5: =C8*(1+$B$15) -> 654,000 | M5: =MIN($B$14,MAX(0,L5-$B$13)) -> 154,000
B6: Loss Number | C6: Incurred Loss | H6: =B9 -> 3 | I6: =MIN($B$14,MAX(0,C9-$B$13)) -> 0 | K6: =B9 -> 3 | L6: =C9*(1+$B$15) -> 381,500 | M6: =MIN($B$14,MAX(0,L6-$B$13)) -> 0
B7: 1 | C7: 500,000 | H7: =B10 -> 4 | I7: =MIN($B$14,MAX(0,C10-$B$13)) -> 500,000 | K7: =B10 -> 4 | L7: =C10*(1+$B$15) -> 1,635,000 | M7: =MIN($B$14,MAX(0,L7-$B$13)) -> 500,000
B8: 2 | C8: 600,000 | H8: =B11 -> 5 | I8: =MIN($B$14,MAX(0,C11-$B$13)) -> 450,000 | K8: =B11 -> 5 | L8: =C11*(1+$B$15) -> 1,035,500 | M8: =MIN($B$14,MAX(0,L8-$B$13)) -> 500,000
B9: 3 | C9: 350,000
B10: 4 | C10: 1,500,000 | H10: Total | I10: =SUM(I4:I8) -> 1,050,000 | K10: Total | M10: =SUM(M4:M8) -> 1,199,000
B11: 5 | C11: 950,000
H12: Inflation rate in layer | J12: =M10/I10-1 -> 14.2%
B13: 500,000 | C13: Retention
B14: 500,000 | C14: Limit | H14: Alice: "Here's a bonus - another way of approaching this problem. Rather than trending the claims,
B15: 9% | C15: Inflation rate for Workers' Compensation claims | H15: you can detrend the future limits to today instead."
A17: (a) | B17: Calculate the inflation rate in the $500,000 excess of $500,000 layer. | H17: Detrended Retention (lower bound) | L17: =B13/(1+B15) -> 458,716
A18: =INDEX('Point Grid'!$C$8:$I$27,MATCH($A$1,'Point Grid'!$A$8:$A$27,0),MATCH(A17,'Point Grid'!$C$7:$I$7,0)) -> 1 | H18: Detrended Retention + Limit (upper bound) | L18: =(B13+B14)/(1+B15) -> 917,431
A19: 1 | H19: Layer size | L19: =L18-L17 -> 458,716
H21: Loss in layer
H22: Loss Number | I22: Loss in Layer
H23: =B7 -> 1 | I23: =MIN($L$19,MAX(0,C7-$L$17)) -> 41,284
H24: =B8 -> 2 | I24: =MIN($L$19,MAX(0,C8-$L$17)) -> 141,284
H25: =B9 -> 3 | I25: =MIN($L$19,MAX(0,C9-$L$17)) -> 0
H26: =B10 -> 4 | I26: =MIN($L$19,MAX(0,C10-$L$17)) -> 458,716
H27: =B11 -> 5 | I27: =MIN($L$19,MAX(0,C11-$L$17)) -> 458,716
H29: Total | I29: =SUM(I23:I27) -> 1,100,000
H31: Change in level today: | J31: =I29/I10-1 -> 4.8%
H32: Change in level after 1 year: | J32: =(1+J31)*(1+B15)-1 -> 14.2% | K32: We get the same result provided we remember to match the point in time where
K33: we make the inflation measurement.

Sheet 18
A1: =VALUE(MID(CELL("filename",A1),FIND("]",CELL("filename",A1))+1,LEN(CELL("filename",A1))-FIND("]",CELL("filename",A1))+1)) -> 18 | B1: Finished | G1: Navigator | J1: Solution
I2: a.) | J2: For a uniform distribution on [0, b] we have:
A3: Points | B3: Per-claim accident severity is modeled using a uniform distribution on the
A4: =INDEX('Point Grid'!B:B,MATCH('18'!A1,'Point Grid'!A:A,0)) -> 3.25 | B4: interval [0, 18,000].
J5: =AVERAGE(0,18000) -> 9,000 | K5: Expected Severity
A6: (a) | B6: Using the equally spaced evaluation points of $3,000 calculate the probability density
A7: =INDEX('Point Grid'!$C$8:$I$27,MATCH($A$1,'Point Grid'!$A$8:$A$27,0),MATCH(A6,'Point Grid'!$C$7:$I$7,0)) -> 2 | B7: function for a discrete version of this distribution for use in Panjer's recursive | J7: xi | K7: XS(xi) | L7: LEVi | M7: LILi | N7: CDF | O7: PDF | P7: PDF Panjer
A8: 2 | B8: algorithm. | J8: 0 | K8: =(1-J8/18000)^2 -> 1.000 | L8: =(1-K8)*$J$5 -> 0 | M8: 0 | N8: =1-M9/(J9-J8) -> 0.083 | O8: =N8 -> 0.083 | P8: 0.000
J9: 3,000 | K9: =(1-J9/18000)^2 -> 0.694 | L9: =(1-K9)*$J$5 -> 2,750 | M9: =L9-L8 -> 2,750 | N9: 0.250 | O9: =N9-N8 -> 0.167 | P9: =O9/(1-$O$8) -> 0.182
B10: A multi-state, multi-hazard group policy is being priced using the following information: | J10: 6,000 | K10: 0.444 | L10: 5,000 | M10: 2,250 | N10: 0.417 | O10: 0.167 | P10: 0.182
B11: Claim counts are modeled using a negative binomial distribution. | J11: 9,000 | K11: 0.250 | L11: 6,750 | M11: 1,750 | N11: 0.583 | O11: 0.167 | P11: 0.182
J12: 12,000 | K12: 0.111 | L12: 8,000 | M12: 1,250 | N12: 0.750 | O12: 0.167 | P12: 0.182
C13: Hazard | D13: Expected | E13: Average | J13: 15,000 | K13: 0.028 | L13: 8,750 | M13: 750 | N13: 0.917 | O13: 0.167 | P13: 0.182
B14: State | C14: Group | D14: Loss | E14: Claim Size | J14: 18,000 | K14: 0.000 | L14: 9,000 | M14: 250 | N14: 1.000 | O14: 0.083 | P14: 0.091
B15: AK | C15: E | D15: 240,000 | E15: 15,000
B16: AL | C16: G | D16: 171,000 | E16: 9,000 | I16: b.) | J16: E[N]PC = | K16: =D15/E15+D16/E16 -> 35
J17: VtMPC = | K17: =1.5*K16^0.75 -> 21.58451489
B18: Variance-to-Mean relationships for claim count distributions: | J18: Var(N)PC = | K18: =K17*K16 -> 755.4580211
B19: VtMPC = 1 + 0.811265 * E[N]PC if E[N]PC ≤ 3.697927
B20: VtMPC = 1.5 * (E[N]PC)0.75 if E[N]PC > 3.697927 | J20: Adjustment Factor AF0 = | L20: =1-O8 -> 0.917
A22: (b) | B22: Calculate the mean and variance-to-mean function for the expected claim counts on | J22: E[N]Panjer = | K22: =K16*L20 -> 32.08333333
A23: =INDEX('Point Grid'!$C$8:$I$27,MATCH($A$1,'Point Grid'!$A$8:$A$27,0),MATCH(A22,'Point Grid'!$C$7:$I$7,0)) -> 1 | B23: a per-claim basis for use in Panjer's recursive algorithm. | J23: VtMPanjer = | K23: =K17*L20 -> 19.78580531
A24: 1
I25: c.) | J25: By directly calculating the limited aggregate loss distribution there is no need for an adjustment to
A26: (c) | B26: Briefly describe an advantage of the NCCI Circular approach to produce the | J26: remove the overlap between the loss limit and the aggregate loss limit.
A27: =INDEX('Point Grid'!$C$8:$I$27,MATCH($A$1,'Point Grid'!$A$8:$A$27,0),MATCH(A26,'Point Grid'!$C$7:$I$7,0)) -> 0.25 | B27: Aggregate Loss Factors on Demand.
A28: 0.25

Sheet 19
A1: =VALUE(MID(CELL("filename",A1),FIND("]",CELL("filename",A1))+1,LEN(CELL("filename",A1))-FIND("]",CELL("filename",A1))+1)) -> 19 | B1: Finished | H1: Navigator | K1: Solution
J2: a.) | K2: This diminishing deductible eliminates all losses below $500 and eliminates proportionally less until the ground-up
A3: Points | B3: An actuary is pricing a diminishing deductible which starts at $500 and ends | K3: claim size reaches $1,500 at which point the deductible does not eliminate any loss.
A4: =INDEX('Point Grid'!B:B,MATCH('19'!A1,'Point Grid'!A:A,0)) -> 2.5 | B4: at $1,500 using the following ground-up claims data: | L4: Size of Deductible
K5: Claim | L5: Diminishing | M5: Franchise | N5: Straight
C6: Claim # | D6: Loss Size | F6: Claim # | G6: Loss Size | K6: 1 | L6: =IF(D7<500,D7,IF(D7>1500,0,500/(1500-500)*(1500-D7))) -> 325 | M6: =IF(D7<=1500,D7,0) -> 850 | N6: =MIN(D7,500) -> 500
C7: 1 | D7: 850 | F7: 9 | G7: 400 | K7: 2 | L7: =IF(D8<500,D8,IF(D8>1500,0,500/(1500-500)*(1500-D8))) -> 0 | M7: =IF(D8<=1500,D8,0) -> 0 | N7: =MIN(D8,500) -> 500
C8: 2 | D8: 2,250 | F8: 10 | G8: 5,000 | K8: 3 | L8: 125 | M8: 1,250 | N8: 500
C9: 3 | D9: 1,250 | F9: 11 | G9: 1,500 | K9: 4 | L9: 250 | M9: 1,000 | N9: 500
C10: 4 | D10: 1,000 | F10: 12 | G10: 2,000 | K10: 5 | L10: 0 | M10: 0 | N10: 500
C11: 5 | D11: 2,750 | F11: 13 | G11: 100 | K11: 6 | L11: 500 | M11: 500 | N11: 500
C12: 6 | D12: 500 | F12: 14 | G12: 900 | K12: 7 | L12: 250 | M12: 250 | N12: 250
C13: 7 | D13: 250 | F13: 15 | G13: 1,750 | K13: 8 | L13: 0 | M13: 0 | N13: 500
C14: 8 | D14: 3,500 | K14: 9 | L14: =IF(G7<500,G7,IF(G7>1500,0,500/(1500-500)*(1500-G7))) -> 400 | M14: =IF(G7<=1500,G7,0) -> 400 | N14: =MIN(G7,500) -> 400
K15: 10 | L15: =IF(G8<500,G8,IF(G8>1500,0,500/(1500-500)*(1500-G8))) -> 0 | M15: =IF(G8<=1500,G8,0) -> 0 | N15: =MIN(G8,500) -> 500
A16: (a) | B16: Calculate the loss elimination ratio which results from this diminishing | K16: 11 | L16: 0 | M16: 1,500 | N16: 500
A17: =INDEX('Point Grid'!$C$8:$I$27,MATCH($A$1,'Point Grid'!$A$8:$A$27,0),MATCH(A16,'Point Grid'!$C$7:$I$7,0)) -> 1 | B17: deductible. | K17: 12 | L17: 0 | M17: 0 | N17: 500
A18: 1 | K18: 13 | L18: 100 | M18: 100 | N18: 100
K19: 14 | L19: 300 | M19: 900 | N19: 500
B20: The underwriter responsible for this policy believes it is better for the | K20: 15 | L20: 0 | M20: 0 | N20: 500
B21: insurer to require a $1,500 franchise deductible than a $500 straight | K21: Total | L21: =SUM(L6:L20) -> 2,250 | M21: =SUM(M6:M20) -> 6,750 | N21: =SUM(N6:N20) -> 6,750
B22: deductible as the higher franchise deductible will eliminate more losses
B23: than the straight deductible. | K23: Total loss | L23: =SUM(D7:D14,G7:G13) -> 24,000
A25: (b) | B25: Briefly explain why the underwriter is incorrect. | K25: LER = | L25: =L21/L23 -> 9.4% | M25: =M21/L23 -> 28.1% | N25: =N21/L23 -> 28.1%
A26: =INDEX('Point Grid'!$C$8:$I$27,MATCH($A$1,'Point Grid'!$A$8:$A$27,0),MATCH(A25,'Point Grid'!$C$7:$I$7,0)) -> 0.5
A27: 0.5 | J27: b.) | K27: Using the above table we see the franchise deductible and straight deductible have the same LER.
K28: Therefore, the insurer's expected loss is the same under each.
A29: (c) | B29: Give one reason in support of the franchise deductible and another
A30: =INDEX('Point Grid'!$C$8:$I$27,MATCH($A$1,'Point Grid'!$A$8:$A$27,0),MATCH(A29,'Point Grid'!$C$7:$I$7,0)) -> 1 | B30: reason in support of the straight deductible. | J30: c.) | K30: For Franchise Deductible:
A31: 1 | K31: The franchise deductible will eliminate more small value nuisance claims than the straight deductible.
K32: This could reduce the insurer's loss adjustment expenses.
K34: For Straight Deductible:
K35: If the insurer pays all losses and seeks reimbursement for the deductible then the lower straight deductible
K36: reduces the credit risk associated with any individual claim (the expected overall credit risk is the same).

Sheet 20
A1: =VALUE(MID(CELL("filename",A1),FIND("]",CELL("filename",A1))+1,LEN(CELL("filename",A1))-FIND("]",CELL("filename",A1))+1)) -> 20 | B1: Finished | H1: Navigator | J1: Solution
I2: a.) | J2: For a Pareto distribution we have:
A3: Points | B3: An actuary is estimating the impact of inflation on their book of business.
A4: =INDEX('Point Grid'!B:B,MATCH(A1,'Point Grid'!A:A,0)) -> 2.75 | J4: E[X; 9,000] = | L4: =C7/(C6-1)*(1-(C7/(9000+C7))^(C6-1)) -> 2,250
B5: They model claim-size using a Pareto distribution with parameters: | J5: E[X; 5,000] = | L5: =C7/(C6-1)*(1-(C7/(5000+C7))^(C6-1)) -> 1,875
B6: α = | C6: 2
B7: β = | C7: 3,000 | J7: Excess layer expected severity =
B9: Estimated Inflation | C9: 10% | J9: F(5,000) = | K9: =1-(C7/(5000+C7))^C6 -> 0.859375
B10: Exposure Growth | C10: 5%
J11: Excess layer expected severity = | M11: =(L4-L5)/(1-K9) -> $2,666.67
A12: (a) | B12: Calculate the expected excess severity for the layer 4,000 excess of 5,000.
A13: =INDEX('Point Grid'!$C$8:$I$27,MATCH($A$1,'Point Grid'!$A$8:$A$27,0),MATCH(A12,'Point Grid'!$C$7:$I$7,0)) -> 0.75 | I13: b.) | J13: We detrend the layer before applying the approach used in part a.)
A14: 0.75
J15: Before | K15: After | L15: F(x) | M15: E[X; L]
A16: (b) | B16: Calculate the annual trend rate for claims in the layer 4,000 excess of 5,000. | J16: 9,000 | K16: =J16/(1+$C$9) -> 8,182 | L16: =1-(C7/(K16+C7))^C6 -> 0.9280 | M16: =C7/(C6-1)*(1-(C7/(K16+C7))^(C6-1)) -> 2,195
A17: =INDEX('Point Grid'!$C$8:$I$27,MATCH($A$1,'Point Grid'!$A$8:$A$27,0),MATCH(A16,'Point Grid'!$C$7:$I$7,0)) -> 0.5 | J17: 5,000 | K17: =J17/(1+$C$9) -> 4,545 | L17: =1-(C7/(K17+C7))^C6 -> 0.8419 | M17: =C7/(C6-1)*(1-(C7/(K17+C7))^(C6-1)) -> 1,807
A18: 0.5
J19: Excess layer expected severity = | M19: =(1+C9)*(M16-M17)/(1-L17) -> $2,699.19
A20: (c) | B20: Briefly describe why the annual trend rate is lower in part b.) above than the
A21: =INDEX('Point Grid'!$C$8:$I$27,MATCH($A$1,'Point Grid'!$A$8:$A$27,0),MATCH(A20,'Point Grid'!$C$7:$I$7,0)) -> 0.5 | B21: estimated inflation chosen by the actuary. | J21: Annual Trend Rate = | L21: =M19/M11-1 -> 1.22%
A22: 0.5
I23: c.) | J23: A uniform inflationary trend does not cause all claims below the attachment point to then exceed it.
A24: (d) | B24: Calculate the annual change in: | J24: Further, the upper limit serves to reduce the impact of inflation further because once a claim exceeds this limit
A25: =INDEX('Point Grid'!$C$8:$I$27,MATCH($A$1,'Point Grid'!$A$8:$A$27,0),MATCH(A24,'Point Grid'!$C$7:$I$7,0)) -> 1 | B25: i.) Aggregate Loss | J25: inflation no longer impacts the layer.
A26: 1 | B26: ii.) Aggregate Loss, due to claim-size inflation only
I27: d.) | J27: Claim count annual trend due to inflation =
J29: We are interested in the layer 4,000 excess of 5,000 so L = 5,000.
J30: S(5,000) = | K30: =(C7/(5000+C7))^C6 -> 0.140625
J31: S(4,545) = | K31: =1-L17 -> 0.1581
J33: Claim count annual trend due to inflation | N33: =K31/K30-1 -> 12.4%
J34: However, claim counts are also increasing due to exposure growth.
J35: We assume the new exposures follow the same claim size distribution and loss frequency.
J37: Claim count annual trend to inflation and exposure growth | P37: =(1+N33)*(1+C10)-1 -> 18.0%
J39: In part b.) above, we calculated the claim size annual trend as | P39: =L21 -> 1.22%
I41: i.) | J41: So the annual aggregate loss trend is | N41: =(1+P37)*(1+P39)-1 -> 19.47%
I43: ii.) | J43: We can now back out the exposure growth.
J44: Annual aggregate loss trend due to claim-size inflation only | P44: =(1+N41)/(1+C10)-1 -> 13.78%

Sheet 21
A1: =VALUE(MID(CELL("filename",A1),FIND("]",CELL("filename",A1))+1,LEN(CELL("filename",A1))-FIND("]",CELL("filename",A1))+1)) -> 21 | B1: Finished | H1: Navigator | J1: Solution
I2: a.) | J2: Categories A and D are assigned partial credibility because they deviate away from the GLM relativity towards their complement.
A3: Points | B3: An actuary has built a GLM and a lasso credibility model and is evaluating the | J3: Category B is assigned full credibility because even though the complement and lasso credibility relativities are the same, this category has a lot of exposures.
A4: =INDEX('Point Grid'!B:B,MATCH(A1,'Point Grid'!A:A,0)) -> 4 | B4: model output for a categorical variable with five levels. | J4: Category C is assigned zero credibility because the lasso credibility relativity is the same as the complement relativity and the exposure volume is low.
J5: Category E is assigned full credibility because the GLM relativity and lasso credibility are the same and there are ample exposures.
B6: The complement of credibility for the lasso credibility model is the current
B7: rating plan relativities which were previously produced by a GLM. | J7: The result for category A is intuitive because there is a small deviation from the complement and both the complement and lasso credibility relativity indicate a surcharge.
J8: The result for category D is not intuitive because there is a large deviation from the complement and a low exposure volume.
A9: (a) | B9: Using the table and graph below, briefly explain the broad level of credibility | J9: The result for category E is intuitive because although the deviation is large, it is backed by a substantial volume of exposures.
A10: =INDEX('Point Grid'!$C$8:$I$28,MATCH($A$1,'Point Grid'!$A$8:$A$28,0),MATCH(A9,'Point Grid'!$C$7:$I$7,0)) -> 2.5 | B10: assigned to each category by the lasso credibility model and explain
A11: 2.5 | B11: whether the results for categories A, D, and E are intuitive. | I11: b.) | J11: 1.) The complement of credibility may be inappropriate. They could use penalized lasso regression or a different complement.
J12: 2.) Lasso credibility with the existing complement may be appropriate but the λ-parameter should likely be increased to remove the counter-intuitive results.
I14: c.) | J14: When building a lasso credibility model the data should be at least as granular as the complement. This allows the model to react to credible differences.
J15: While the model can be run as is, splitting category D into two sub-categories with the same complement may help resolve the reversal seen between the
J16: current and prior GLMs.
B28: Category | C28: Exposures | D28: GLM | E28: Lasso Credibility | F28: Complement
B29: A | C29: 55,000 | D29: 0.772 | E29: 1.036 | F29: 1.095
B30: B | C30: 175,000 | D30: 1.952 | E30: 1.881 | F30: 1.881
B31: C | C31: 10,000 | D31: 1.184 | E31: 1.138 | F31: 1.138
B32: D | C32: 48,000 | D32: 0.723 | E32: 0.801 | F32: 1.043
B33: E | C33: 169,000 | D33: 0.707 | E33: 0.707 | F33: 0.952
A35: (b) | B35: Briefly describe two ways in which the actuary could address the
A36: =INDEX('Point Grid'!$C$8:$I$28,MATCH($A$1,'Point Grid'!$A$8:$A$28,0),MATCH(A35,'Point Grid'!$C$7:$I$7,0)) -> 1 | B36: counter-intuitive results identified in part a.) above.
A37: 1
B39: The actuary recently learned that the Data Enablement group who prepared the
B40: data has grouped two sub-categories to form category D because
B41: the prior model had shown these sub-categories were insignificant by
B42: themselves.
A44: (c) | B44: Briefly explain whether or not this presents a problem when modeling
A45: =INDEX('Point Grid'!$C$8:$I$28,MATCH($A$1,'Point Grid'!$A$8:$A$28,0),MATCH(A44,'Point Grid'!$C$7:$I$7,0)) -> 0.5 | B45: using lasso credibility.
A46: 0.5
